Workbook

Sheet Main Data Entry
A1: Unit Information & Characteristics | Z1: 11111109
C3: EIA 860 Plant Name (US Only):
C4: EIA 860 Plant Code (US Only):
C5: EIA 860 Generator ID (US Only):
C6: GADS Generator Unit ID:
C7: Planning Case Bus Number:
C8: Balancing Authority:
C9: Generator Type:
C10: Generator Machine Base (MBASE)(MVA):
C11: Inertia Constant (H):
C13: Droop Setting: | D13: 0.05 | F13: Hz Span | G13: =D13*D20 -> 3 | H13: Hz
C14: Deadband Setting: | D14: 0.017 | E14: Hz | F14: Hz Span (dB) | G14: =G13-D14 -> 2.983 | H14: Hz
C15: Maximum Operating Level (Pmax)(HSL): | D15: 415 | E15: MW | F15: Turbine NDC | G15: =D15 -> 415 | H15: MW
C16: Minimum Operating Level (Pmin)(LSL): | D16: 125 | E16: MW
A17: System & Event Characteristics
C19: Time of Frequency Event (UTC): | D19: 2017-01-24T03:50:20 | E19: Date | F19: Time
C20: Grid Nominal Frequency: | D20: 60 | E20: =D19 -> 2017-01-24T03:50:20 | F20: =D19 -> 42759.15995
A22: Report Options
C23: Data Source: | D23: Historian
C24: Time Zone of Historian Data: | D24: CST
A26: Manual Data Entry
D28: Pre-Perturbation Average Frequency [T(-16) to T(-2)] | F28: Hz
D29: Post-Perturbation Average Frequency [T(+20 to T(+52)] | F29: Hz
D30: Post-Perturbation Frequency [(T+46)] | F30: Hz
D31: Pre-Perturbation Average MW [T(-2 ) to T(-16)] | F31: MW
D32: Post-Perturbation Average MW [T(+20 to T(+52)] | F32: MW
D33: Maximum MW Response [T(+46) to T(+60)] | F33: MW
D34: MW Output [T(-4)] | F34: MW
D35: MW Output [T(-60)] | F35: MW

Sheet Results
A6: Results
D8: P.U. Primary Frequency Response Performance (PUPFR): | E8: 1.509136834
D9: P.U. Sustained Primary Frequency Response Performance (PUSPFR): | E9: 1.655146053
D10: Overall Unit Performance: | E10: J
D11: Minimum Acceptable Score (PU): | E11: 0.75
A12: For Generators between Pmin and % of Pmax and eligible to provide PFR; -Generators who provide response in the proper direction and sustained it for the lessor of the event duration or for 1 minute: J -Generators whose MW output remained unchanged or was in the wrong direction: L
A16: Reason for Performance (optional)

Sheet Historian Data
D1: Start (2mins before T(0)) | E1: ='Main Data Entry'!$D$19-(2/(24*60)) -> 2017-01-24T03:48:20
D2: Offset | E2: =myexacttimematch(E1,$A$8:$A$20000,TRUE) -> -1
A3: -Data should be pulled for NO LESS THAN 1 minute before t(0) and NO LESS THAN 2 minutes after t(0).
A4: -Data may be pulled at any sample interval from 1s to 8s, as long as it is in the proper format.
A5: -Note that the resulting Primary Frequency Response (PFR) calculations are a product of the Data provided. Faster sampled data will provide a result most representative of the units response.
A6: -Any data beyond Row 4000 of this sheet will not be sampled or used in the calculation.
A7: Timestamp | B7: Unit Frequency | C7: MW Output
A8: 2017-01-23T21:40:20 | B8: 60.01599884 | C8: 137.6088562
A9: 2017-01-23T21:40:21 | B9: 60.01499939 | C9: 137.6088562
A10: 2017-01-23T21:40:22 | B10: 60.01499939 | C10: 137.4033051
A11: 2017-01-23T21:40:23 | B11: 60.01599884 | C11: 137.4033051
A12: 2017-01-23T21:40:24 | B12: 60.01800156 | C12: 137.4033051
A13: 2017-01-23T21:40:25 | B13: 60.02000046 | C13: 137.4033051
A14: 2017-01-23T21:40:26 | B14: 60.02099991 | C14: 137.4033051
A15: 2017-01-23T21:40:27 | B15: 60.02000046 | C15: 137.4033051
A16: 2017-01-23T21:40:28 | B16: 60.01900101 | C16: 136.569809
A17: 2017-01-23T21:40:29 | B17: 60.01699829 | C17: 136.569809
A18: 2017-01-23T21:40:30 | B18: 60.01699829 | C18: 136.6009216
A19: 2017-01-23T21:40:31 | B19: 60.01699829 | C19: 136.6009216
A20: 2017-01-23T21:40:32 | B20: 60.01900101 | C20: 136.0665741
A21: 2017-01-23T21:40:33 | B21: 60.01900101 | C21: 136.0665741
A22: 2017-01-23T21:40:34 | B22: 60.02099991 | C22: 136.0863342
A23: 2017-01-23T21:40:35 | B23: 60.02199936 | C23: 136.0863342
A24: 2017-01-23T21:40:36 | B24: 60.02099991 | C24: 136.7418671
A25: 2017-01-23T21:40:37 | B25: 60.02099991 | C25: 136.7418671
A26: 2017-01-23T21:40:38 | B26: 60.02000046 | C26: 136.7176056
A27: 2017-01-23T21:40:39 | B27: 60.02099991 | C27: 136.7176056
A28: 2017-01-23T21:40:40 | B28: 60.02199936 | C28: 136.8005371
A29: 2017-01-23T21:40:41 | B29: 60.02199936 | C29: 136.8005371
A30: 2017-01-23T21:40:42 | B30: 60.02199936 | C30: 136.8005371
A31: 2017-01-23T21:40:43 | B31: 60.02000046 | C31: 136.8005371
A32: 2017-01-23T21:40:44 | B32: 60.01699829 | C32: 136.3874207
A33: 2017-01-23T21:40:45 | B33: 60.01499939 | C33: 136.3874207
A34: 2017-01-23T21:40:46 | B34: 60.01200104 | C34: 136.4025879
A35: 2017-01-23T21:40:47 | B35: 60.01200104 | C35: 136.4025879
A36: 2017-01-23T21:40:48 | B36: 60.01200104 | C36: 135.5202026
A37: 2017-01-23T21:40:49 | B37: 60.01200104 | C37: 135.5202026
A38: 2017-01-23T21:40:50 | B38: 60.01399994 | C38: 135.5528412
A39: 2017-01-23T21:40:51 | B39: 60.01599884 | C39: 135.5528412
A40: 2017-01-23T21:40:52 | B40: 60.01699829 | C40: 135.3875732
A41: 2017-01-23T21:40:53 | B41: 60.01699829 | C41: 135.3875732
A42: 2017-01-23T21:40:54 | B42: 60.01699829 | C42: 135.3875732
A43: 2017-01-23T21:40:55 | B43: 60.01800156 | C43: 135.3875732
A44: 2017-01-23T21:40:56 | B44: 60.01800156 | C44: 136.1112366
A45: 2017-01-23T21:40:57 | B45: 60.01800156 | C45: 136.1112366
A46: 2017-01-23T21:40:58 | B46: 60.01800156 | C46: 136.0846863
A47: 2017-01-23T21:40:59 | B47: 60.01699829 | C47: 136.0846863
A48: 2017-01-23T21:41:00 | B48: 60.01499939 | C48: 137.1520844
A49: 2017-01-23T21:41:01 | B49: 60.01499939 | C49: 137.1520844
A50: 2017-01-23T21:41:02 | B50: 60.01499939 | C50: 137.1125793
A51: 2017-01-23T21:41:03 | B51: 60.01499939 | C51: 137.1125793
A52: 2017-01-23T21:41:04 | B52: 60.01399994 | C52: 136.6013489
A53: 2017-01-23T21:41:05 | B53: 60.01300049 | C53: 136.6013489
A54: 2017-01-23T21:41:06 | B54: 60.01300049 | C54: 136.6202698
A55: 2017-01-23T21:41:07 | B55: 60.01300049 | C55: 136.6202698
A56: 2017-01-23T21:41:08 | B56: 60.01399994 | C56: 135.7582397
A57: 2017-01-23T21:41:09 | B57: 60.01399994 | C57: 135.7582397
A58: 2017-01-23T21:41:10 | B58: 60.01599884 | C58: 135.7901306
A59: 2017-01-23T21:41:11 | B59: 60.01499939 | C59: 135.7901306
A60: 2017-01-23T21:41:12 | B60: 60.01499939 | C60: 135.6043854
A61: 2017-01-23T21:41:13 | B61: 60.01499939 | C61: 135.6043854
A62: 2017-01-23T21:41:14 | B62: 60.01599884 | C62: 135.6043854
A63: 2017-01-23T21:41:15 | B63: 60.01699829 | C63: 135.6043854
A64: 2017-01-23T21:41:16 | B64: 60.01800156 | C64: 136.6363983
A65: 2017-01-23T21:41:17 | B65: 60.01800156 | C65: 136.6363983
A66: 2017-01-23T21:41:18 | B66: 60.01699829 | C66: 136.598465
A67: 2017-01-23T21:41:19 | B67: 60.01699829 | C67: 136.598465
A68: 2017-01-23T21:41:20 | B68: 60.01699829 | C68: 136.5178375
A69: 2017-01-23T21:41:21 | B69: 60.01599884 | C69: 136.5178375
A70: 2017-01-23T21:41:22 | B70: 60.01399994 | C70: 136.5178375
A71: 2017-01-23T21:41:23 | B71: 60.01399994 | C71: 136.5178375
A72: 2017-01-23T21:41:24 | B72: 60.01100159 | C72: 135.3312531
A73: 2017-01-23T21:41:25 | B73: 60.00899887 | C73: 135.3312531
A74: 2017-01-23T21:41:26 | B74: 60.00799942 | C74: 135.3752747
A75: 2017-01-23T21:41:27 | B75: 60.00799942 | C75: 135.3752747
A76: 2017-01-23T21:41:28 | B76: 60.00899887 | C76: 135.0865326
A77: 2017-01-23T21:41:29 | B77: 60.00999832 | C77: 135.0865326
A78: 2017-01-23T21:41:30 | B78: 60.01100159 | C78: 135.0972137
A79: 2017-01-23T21:41:31 | B79: 60.01100159 | C79: 135.0972137
A80: 2017-01-23T21:41:32 | B80: 60.01100159 | C80: 135.8145905
A81: 2017-01-23T21:41:33 | B81: 60.01300049 | C81: 135.8145905
A82: 2017-01-23T21:41:34 | B82: 60.01300049 | C82: 135.7880554
A83: 2017-01-23T21:41:35 | B83: 60.01499939 | C83: 135.7880554
A84: 2017-01-23T21:41:36 | B84: 60.01499939 | C84: 136.1376648
A85: 2017-01-23T21:41:37 | B85: 60.01499939 | C85: 136.1376648
A86: 2017-01-23T21:41:38 | B86: 60.01499939 | C86: 136.1247253
A87: 2017-01-23T21:41:39 | B87: 60.01399994 | C87: 136.1247253
A88: 2017-01-23T21:41:40 | B88: 60.01300049 | C88: 136.0021515
A89: 2017-01-23T21:41:41 | B89: 60.01300049 | C89: 136.0021515
A90: 2017-01-23T21:41:42 | B90: 60.01300049 | C90: 136.0021515
A91: 2017-01-23T21:41:43 | B91: 60.00999832 | C91: 136.0021515
A92: 2017-01-23T21:41:44 | B92: 60.00799942 | C92: 135.6989136
A93: 2017-01-23T21:41:45 | B93: 60.00799942 | C93: 135.6989136
A94: 2017-01-23T21:41:46 | B94: 60.00699997 | C94: 135.7102966
A95: 2017-01-23T21:41:47 | B95: 60.00699997 | C95: 135.7102966
A96: 2017-01-23T21:41:48 | B96: 60.00600052 | C96: 135.5663147
A97: 2017-01-23T21:41:49 | B97: 60.00500107 | C97: 135.5663147
A98: 2017-01-23T21:41:50 | B98: 60.00500107 | C98: 135.5663147
A99: 2017-01-23T21:41:51 | B99: 60.00600052 | C99: 135.5663147
A100: 2017-01-23T21:41:52 | B100: 60.00699997 | C100: 135.5663147
A101: 2017-01-23T21:41:53 | B101: 60.00799942 | C101: 135.5663147
A102: 2017-01-23T21:41:54 | B102: 60.00699997 | C102: 135.5663147
A103: 2017-01-23T21:41:55 | B103: 60.00600052 | C103: 135.5663147
A104: 2017-01-23T21:41:56 | B104: 60.00600052 | C104: 136.1456757
A105: 2017-01-23T21:41:57 | B105: 60.00600052 | C105: 136.1456757
A106: 2017-01-23T21:41:58 | B106: 60.00600052 | C106: 136.1244354
A107: 2017-01-23T21:41:59 | B107: 60.00600052 | C107: 136.1244354
A108: 2017-01-23T21:42:00 | B108: 60.00699997 | C108: 135.9816589
A109: 2017-01-23T21:42:01 | B109: 60.00400162 | C109: 135.9816589
A110: 2017-01-23T21:42:02 | B110: 60.00400162 | C110: 135.9816589
A111: 2017-01-23T21:42:03 | B111: 59.99900055 | C111: 135.9816589
A112: 2017-01-23T21:42:04 | B112: 59.99599838 | C112: 135.7816772
A113: 2017-01-23T21:42:05 | B113: 59.99300003 | C113: 135.7816772
A114: 2017-01-23T21:42:06 | B114: 59.99300003 | C114: 135.7816772
A115: 2017-01-23T21:42:07 | B115: 59.98799896 | C115: 135.7816772
A116: 2017-01-23T21:42:08 | B116: 59.98699951 | C116: 136.1171112
A117: 2017-01-23T21:42:09 | B117: 59.98600006 | C117: 136.1171112
A118: 2017-01-23T21:42:10 | B118: 59.98500061 | C118: 136.1049805
A119: 2017-01-23T21:42:11 | B119: 59.98400116 | C119: 136.1049805
A120: 2017-01-23T21:42:12 | B120: 59.98300171 | C120: 136.9462433
A121: 2017-01-23T21:42:13 | B121: 59.98300171 | C121: 136.9462433
A122: 2017-01-23T21:42:14 | B122: 59.98500061 | C122: 136.9151154
A123: 2017-01-23T21:42:15 | B123: 59.98600006 | C123: 136.9151154
A124: 2017-01-23T21:42:16 | B124: 59.98699951 | C124: 137.1213531
A125: 2017-01-23T21:42:17 | B125: 59.98799896 | C125: 137.1213531
A126: 2017-01-23T21:42:18 | B126: 59.98899841 | C126: 137.1213531
A127: 2017-01-23T21:42:19 | B127: 59.98899841 | C127: 137.1213531
A128: 2017-01-23T21:42:20 | B128: 59.99000168 | C128: 136.0475922
A129: 2017-01-23T21:42:21 | B129: 59.99100113 | C129: 136.0475922
A130: 2017-01-23T21:42:22 | B130: 59.99100113 | C130: 136.0870514
A131: 2017-01-23T21:42:23 | B131: 59.99100113 | C131: 136.0870514
A132: 2017-01-23T21:42:24 | B132: 59.99200058 | C132: 135.9830475
A133: 2017-01-23T21:42:25 | B133: 59.99200058 | C133: 135.9830475
A134: 2017-01-23T21:42:26 | B134: 59.99200058 | C134: 135.9830475
A135: 2017-01-23T21:42:27 | B135: 59.99200058 | C135: 135.9830475
A136: 2017-01-23T21:42:28 | B136: 59.99200058 | C136: 136.1918335
A137: 2017-01-23T21:42:29 | B137: 59.99200058 | C137: 136.1918335
A138: 2017-01-23T21:42:30 | B138: 59.98699951 | C138: 136.1918335
A139: 2017-01-23T21:42:31 | B139: 59.98699951 | C139: 136.1918335
A140: 2017-01-23T21:42:32 | B140: 59.98600006 | C140: 136.0819855
A141: 2017-01-23T21:42:33 | B141: 59.98500061 | C141: 136.0819855
A142: 2017-01-23T21:42:34 | B142: 59.98500061 | C142: 136.0819855
A143: 2017-01-23T21:42:35 | B143: 59.98500061 | C143: 136.0819855
A144: 2017-01-23T21:42:36 | B144: 59.98400116 | C144: 135.0602417
A145: 2017-01-23T21:42:37 | B145: 59.98400116 | C145: 135.0602417
A146: 2017-01-23T21:42:38 | B146: 59.98400116 | C146: 134.0112762
A147: 2017-01-23T21:42:39 | B147: 59.98400116 | C147: 134.0112762
A148: 2017-01-23T21:42:40 | B148: 59.98400116 | C148: 134.0500793
A149: 2017-01-23T21:42:41 | B149: 59.98500061 | C149: 134.0500793
A150: 2017-01-23T21:42:42 | B150: 59.98600006 | C150: 133.7615356
A151: 2017-01-23T21:42:43 | B151: 59.98500061 | C151: 133.7615356
A152: 2017-01-23T21:42:44 | B152: 59.98400116 | C152: 133.7722168
A153: 2017-01-23T21:42:45 | B153: 59.98199844 | C153: 133.7722168
A154: 2017-01-23T21:42:46 | B154: 59.98199844 | C154: 133.5257263
A155: 2017-01-23T21:42:47 | B155: 59.98099899 | C155: 133.5257263
A156: 2017-01-23T21:42:48 | B156: 59.97999954 | C156: 133.5257263
A157: 2017-01-23T21:42:49 | B157: 59.98199844 | C157: 133.5257263
A158: 2017-01-23T21:42:50 | B158: 59.98199844 | C158: 133.2268982
A159: 2017-01-23T21:42:51 | B159: 59.98199844 | C159: 133.2268982
A160: 2017-01-23T21:42:52 | B160: 59.98300171 | C160: 133.2382812
A161: 2017-01-23T21:42:53 | B161: 59.98300171 | C161: 133.2382812
A162: 2017-01-23T21:42:54 | B162: 59.98300171 | C162: 132.7456818
A163: 2017-01-23T21:42:55 | B163: 59.98400116 | C163: 132.7456818
A164: 2017-01-23T21:42:56 | B164: 59.98500061 | C164: 132.7639008
A165: 2017-01-23T21:42:57 | B165: 59.98600006 | C165: 132.7639008
A166: 2017-01-23T21:42:58 | B166: 59.98799896 | C166: 131.7993622
A167: 2017-01-23T21:42:59 | B167: 59.98899841 | C167: 131.7993622
A168: 2017-01-23T21:43:00 | B168: 59.98899841 | C168: 131.8350525
A169: 2017-01-23T21:43:01 | B169: 59.98899841 | C169: 131.8350525
A170: 2017-01-23T21:43:02 | B170: 59.98699951 | C170: 131.9157562
A171: 2017-01-23T21:43:03 | B171: 59.98099899 | C171: 131.9157562
A172: 2017-01-23T21:43:04 | B172: 59.98099899 | C172: 131.9157562
A173: 2017-01-23T21:43:05 | B173: 59.97900009 | C173: 131.9157562
A174: 2017-01-23T21:43:06 | B174: 59.97900009 | C174: 132.6511688
A175: 2017-01-23T21:43:07 | B175: 59.97800064 | C175: 132.6511688
A176: 2017-01-23T21:43:08 | B176: 59.97900009 | C176: 132.6238403
A177: 2017-01-23T21:43:09 | B177: 59.97999954 | C177: 132.6238403
A178: 2017-01-23T21:43:10 | B178: 59.97999954 | C178: 133.3631439
A179: 2017-01-23T21:43:11 | B179: 59.97900009 | C179: 133.3631439
A180: 2017-01-23T21:43:12 | B180: 59.97999954 | C180: 133.3357849
A181: 2017-01-23T21:43:13 | B181: 59.97999954 | C181: 133.3357849
A182: 2017-01-23T21:43:14 | B182: 59.97900009 | C182: 133.2547607
A183: 2017-01-23T21:43:15 | B183: 59.97900009 | C183: 133.2547607
A184: 2017-01-23T21:43:16 | B184: 59.98099899 | C184: 133.2547607
A185: 2017-01-23T21:43:17 | B185: 59.98300171 | C185: 133.2547607
A186: 2017-01-23T21:43:18 | B186: 59.98300171 | C186: 133.2371368
A187: 2017-01-23T21:43:19 | B187: 59.98199844 | C187: 133.2371368
A188: 2017-01-23T21:43:20 | B188: 59.97999954 | C188: 133.2371368
A189: 2017-01-23T21:43:21 | B189: 59.97900009 | C189: 133.2371368
A190: 2017-01-23T21:43:22 | B190: 59.97800064 | C190: 133.1353455
A191: 2017-01-23T21:43:23 | B191: 59.97900009 | C191: 133.1353455
A192: 2017-01-23T21:43:24 | B192: 59.98300171 | C192: 133.1353455
A193: 2017-01-23T21:43:25 | B193: 59.99000168 | C193: 133.1353455
A194: 2017-01-23T21:43:26 | B194: 59.99599838 | C194: 133.7952423
A195: 2017-01-23T21:43:27 | B195: 60.00099945 | C195: 133.7952423
A196: 2017-01-23T21:43:28 | B196: 60.00600052 | C196: 133.7709656
A197: 2017-01-23T21:43:29 | B197: 60.00899887 | C197: 133.7709656
A198: 2017-01-23T21:43:30 | B198: 60.01200104 | C198: 134.7152252
A199: 2017-01-23T21:43:31 | B199: 60.01300049 | C199: 134.7152252
A200: 2017-01-23T21:43:32 | B200: 60.01399994 | C200: 134.6802826
... 1308 more rows

Sheet Calculations
A1: Offset (s) | B1: =Chart!$H$34 -> 0 | F1: Date (UTC): | P1: ='Main Data Entry'!D19 -> 2017-01-24T03:50:20
A2: *Offset should not be more than +/-38s | F2: Time of T(0) (UTC) | P2: ='Main Data Entry'!D19 -> 42759.15995 | AH2: min frequency | AI2: =IF(MIN(AC:AC)<59.975,FLOOR(MIN(AC:AC)-0.025,0.025),59.975) -> 59.775
AH3: max frequency | AI3: =IF(MAX(AC:AC)>60.025,CEILING(MAX(AC:AC)+0.025,0.025),60.025) -> 60.025
A4: Calculated using Generator provided Historian Data | S4: Calculated using Generator provided manually calculated data | AB4: Raw Input Data | AE4: Interpolated Values | AH4: frequency major unit | AI4: 0.025
F5: Pre-Perturbation Average Frequency [T(-16) to T(-2)] | P5: =$E$105 -> 59.97806727 | T5: Pre-Perturbation Average Frequency [T(-16) to T(-2)] | U5: ='Main Data Entry'!E28 -> 0 | AH5: frequency units | AI5: =(AI3-AI2)/AI4 -> 10
F6: Post-Perturbation Average Frequency [T(+20 to T(+52)] | P6: =$E$141 -> 59.93942376 | T6: Post-Perturbation Average Frequency [T(+20 to T(+52)] | U6: ='Main Data Entry'!E29 -> 0 | AB6: Timestamp | AC6: Raw Frequency (Hz) | AD6: Raw Generator Output (MW) | AE6: Raw Frequency (Hz) | AF6: Raw Generator Output (MW) | AH6: min response | AI6: =CEILING(MIN(AD:AD)-10,10) -> 130
F7: Pre to Post Perturbation Delta Frequency Actual | P7: =P6-P5 -> -0.03864350752 | T7: Pre to Post Perturbation Delta Frequency Actual | U7: =U6-U5 -> 0 | AH7: max response | AI7: =CEILING(MAX(AD:AD)+10,10) -> 180
F8: Post-Perturbation Frequency (T+46) | P8: =$C$167 -> 59.94400024 | T8: Post-Perturbation Frequency (T+46) | U8: ='Main Data Entry'!E30 -> 0 | AH8: response major unit | AI8: =(AI7-AI6)/AI5 -> 5
F9: Pre to Post-Event Delta Frequency Actual (T+46) | P9: =P8-P5 -> -0.03406702677 | T9: Pre to Post-Event Delta Frequency Actual (T+46) | U9: =U8-U5 -> 0
F10: High or Low Frequency Event? | P10: =IF(P6>'Main Data Entry'!D20,"High",IF(P6<'Main Data Entry'!D20,"Low","Does Not Compute")) -> Low | T10: High or Low Frequency Event? | U10: =IF(U6>'Main Data Entry'!$D$20,"High",IF(U6<'Main Data Entry'!$D$20,"Low","Does Not Compute")) -> Low
AB11: =AB12-TIME(0,0,1) -> 42759.15868 | AC11: 59.98300171 | AD11: 136.9074554 | AE11: =$AC$11 -> 59.98300171 | AF11: =$AD$11 -> 136.9074554
F12: Pre-Perturbation Average MW [T(-2 ) to T(-16)] | P12: =$F$105 -> 146.2024465 | Q12: Headroom Available: | R12: ='Main Data Entry'!G15-Calculations!P12 -> 268.7975535 | T12: Pre-Perturbation Average MW [T(-2 ) to T(-16)] | U12: ='Main Data Entry'!E31 -> 0 | V12: Headroom Available: | W12: ='Main Data Entry'!$G$15-Calculations!$U$12 -> 415 | AB12: 42759.15869 | AC12: 59.98300171 | AD12: 136.8960419 | AE12: =IF($AC12="",$AE11,IF($AC12<>$AE11,$AC12,$AE11)) -> 59.98300171 | AF12: =IF($AD12="",$AF11,IF($AD12<>$AF11,$AD12,$AF11)) -> 136.8960419
F13: Post-Perturbation Average MW [T(+20 to T(+52)] | P13: =$F$141 -> 158.0875577 | Q13: Footroom Available: | R13: =P12-'Main Data Entry'!D16 -> 21.20244649 | T13: Post-Perturbation Average MW [T(+20 to T(+52)] | U13: ='Main Data Entry'!E32 -> 0 | V13: Footroom Available: | W13: =U12-'Main Data Entry'!$D$16 -> -125 | AB13: 42759.1587 | AC13: 59.98400116 | AD13: 136.8960419 | AE13: 59.98400116 | AF13: 136.8960419
F14: Pre to Post-Perturbation Delta MW Actual | P14: =P13-P12 -> 11.88511121 | Q14: Adequate Margin? | R14: =IF(P10="Low",IF(P12>=MIN(('Main Data Entry'!G15*0.98),'Main Data Entry'!G15-5),"No","Yes"),IF(P10="High",IF(Calculations!P12<=MAX(('Main Data Entry'!D16+('Main Data Entry'!G15*0.2)),('Main Data Entry'!D16+5)),"No","Yes"))) -> Yes | T14: Pre to Post-Perturbation Delta MW Actual | U14: =U13-U12 -> 0 | V14: Adequate Margin? | W14: =IF(U10="Low",IF(U12>=MIN(('Main Data Entry'!$G$15*0.98),'Main Data Entry'!$G$15-5),"No","Yes"),IF(U10="High",IF(Calculations!U12<=MAX(('Main Data Entry'!$D$16+('Main Data Entry'!$G$15*0.2)),('Main Data Entry'!$D$16+5)),"No","Yes"))) -> Yes | AB14: 42759.15872 | AC14: 59.98199844 | AD14: 136.691391 | AE14: 59.98199844 | AF14: 136.691391
AB15: 42759.15873 | AC15: 59.98199844 | AD15: 136.691391 | AE15: 59.98199844 | AF15: 136.691391
F16: RampMagnitude_initial | P16: =($D$117-$D$61)*0.59 -> 3.771765137 | T16: RampMagnitude_initial | U16: =('Main Data Entry'!$E$34-'Main Data Entry'!$E$35)*0.59 -> 0 | AB16: 42759.15874 | AC16: 59.97999954 | AD16: 136.691391 | AE16: 59.97999954 | AF16: 136.691391
F17: Actual Primary Frequency Response (adjusted) | P17: =P14-P16 -> 8.113346077 | T17: Actual Primary Frequency Response (adjusted) | U17: =U14-U16 -> 0 | AB17: 42759.15875 | AC17: 59.97999954 | AD17: 136.691391 | AE17: 59.97999954 | AF17: 136.691391
F18: Expected Primary Frequency Response (Pre) | P18: =$R$105 -> 0.6862496046 | T18: Expected Primary Frequency Response (Pre) | U18: =IF($U$5>'Main Data Entry'!$D$20+'Main Data Entry'!$D$14,((Calculations!$U$5-'Main Data Entry'!$D$20-'Main Data Entry'!$D$14)/('Main Data Entry'!$D$20*'Main Data Entry'!$D$13-'Main Data Entry'!$D$14))*-1*'Main Data Entry'!$D$15,IF(Calculations!$U$5<'Main Data Entry'!$D$20-'Main Data Entry'!$D$14,((Calculations!$U$5-'Main Data Entry'!$D$20+'Main Data Entry'!$D$14)/('Main Data Entry'!$D$20*'Main Data Entry'!$D$13-'Main Data Entry'!$D$14))*-1*'Main Data Entry'!$D$15,0)) -> 8344.936306 | AB18: 42759.15876 | AC18: 59.97999954 | AD18: 136.0629425 | AE18: 59.97999954 | AF18: 136.0629425
F19: Expected Primary Frequency Response (Post) | P19: =$R$141 -> 6.062399662 | T19: Expected Primary Frequency Response (Post) | U19: =IF($U$6>'Main Data Entry'!$D$20+'Main Data Entry'!$D$14,((Calculations!$U$6-'Main Data Entry'!$D$20-'Main Data Entry'!$D$14)/('Main Data Entry'!$D$20*'Main Data Entry'!$D$13-'Main Data Entry'!$D$14))*-1*'Main Data Entry'!$D$15,IF(Calculations!$U$6<'Main Data Entry'!$D$20-'Main Data Entry'!$D$14,((Calculations!$U$6-'Main Data Entry'!$D$20+'Main Data Entry'!$D$14)/('Main Data Entry'!$D$20*'Main Data Entry'!$D$13-'Main Data Entry'!$D$14))*-1*'Main Data Entry'!$D$15,0)) -> 8344.936306 | AB19: 42759.15877 | AC19: 59.97999954 | AD19: 136.0629425 | AE19: 59.97999954 | AF19: 136.0629425
F20: Expected Primary Frequency Response (Ideal) | P20: =$P$19-$P$18 -> 5.376150058 | T20: Expected Primary Frequency Response (Ideal) | U20: =U19-U18 -> 0 | AB20: 42759.15878 | AC20: 59.97900009 | AD20: 136.0864716 | AE20: 59.97900009 | AF20: 136.0864716
F21: Expected Primary Frequency Response (Final) | P21: =$P$20 -> 5.376150058 | T21: Expected Primary Frequency Response (Final) | U21: =U20 -> 0 | AB21: 42759.1588 | AC21: 59.97900009 | AD21: 136.0864716 | AE21: 59.97900009 | AF21: 136.0864716
AB22: 42759.15881 | AC22: 59.97999954 | AD22: 135.5523987 | AE22: 59.97999954 | AF22: 135.5523987
F23: PUPFR Performance | P23: =IFERROR($P$17/$P$21,0) -> 1.509136834 | Q23: Final PUPFR Performance | R23: =IFERROR(IF($R$14="Yes",P23,"No Evaluation"),0) -> 1.509136834 | T23: PUPFR Performance | U23: =IFERROR(U17/U21,0) -> 0 | V23: Final PUPFR Performance | W23: =IFERROR(IF($W$14="Yes",U23,"No Evaluation"),0) -> 0 | AB23: 42759.15882 | AC23: 59.98099899 | AD23: 135.5523987 | AE23: 59.98099899 | AF23: 135.5523987
AB24: 42759.15883 | AC24: 59.98199844 | AD24: 135.5721588 | AE24: 59.98199844 | AF24: 135.5721588
F25: Maximum MW Response [T(+46) to T(+60)] | P25: =MAX($D$167:$D$181) -> 159.2954559 | T25: Maximum MW Response [T(+46) to T(+60)] | U25: ='Main Data Entry'!$E$33 -> 0 | AB25: 42759.15884 | AC25: 59.98199844 | AD25: 135.5721588 | AE25: 59.98199844 | AF25: 135.5721588
F26: Actual Sustained Primary Frequency Response | P26: =P25-P12 -> 13.09300944 | T26: Actual Sustained Primary Frequency Response | U26: =U25-U12 -> 0 | AB26: 42759.15885 | AC26: 59.98199844 | AD26: 136.2071686 | AE26: 59.98199844 | AF26: 136.2071686
F27: RampMagnitude_sustained | P27: =($D$117-$D$61)*0.821 -> 5.24850708 | T27: RampMagnitude_sustained | U27: =('Main Data Entry'!$E$34-'Main Data Entry'!$E$35)*0.821 -> 0 | AB27: 42759.15887 | AC27: 59.98099899 | AD27: 136.2071686 | AE27: 59.98099899 | AF27: 136.2071686
F28: Actual Sustained Primary Frequency Response (adjusted) | P28: =$P$26-$P$27 -> 7.84450236 | T28: Actual Sustained Primary Frequency Response (adjusted) | U28: =U26-U27 -> 0 | AB28: 42759.15888 | AC28: 59.97999954 | AD28: 136.1836853 | AE28: 59.97999954 | AF28: 136.1836853
F29: Expected Sustained Primary Frequency Response [T(+46)] | P29: =$Q$167 -> 5.425711928 | T29: Expected Sustained Primary Frequency Response [T(+46)] | U29: =V108 -> 0 | AB29: 42759.15889 | AC29: 59.97900009 | AD29: 136.1836853 | AE29: 59.97900009 | AF29: 136.1836853
F30: Expected Sustained Primary Frequency Response (Ideal) | P30: =$P$29-$P$18 -> 4.739462324 | T30: Expected Sustained Primary Frequency Response (Ideal) | U30: =IF('Main Data Entry'!$E$30<'Main Data Entry'!$D$20-'Main Data Entry'!$D$14,(('Main Data Entry'!$E$30-'Main Data Entry'!$D$20+'Main Data Entry'!$D$14)/('Main Data Entry'!$D$20*'Main Data Entry'!$D$13-'Main Data Entry'!$D$14))*(-1)*'Main Data Entry'!$G$15,IF('Main Data Entry'!$E$30>'Main Data Entry'!$D$20+'Main Data Entry'!$D$14,(('Main Data Entry'!$E$30-'Main Data Entry'!$D$20-'Main Data Entry'!$D$14)/('Main Data Entry'!$D$20*'Main Data Entry'!$D$13-'Main Data Entry'!$D$14))*(-1)*'Main Data Entry'!$G$15,0)) -> 8344.936306 | AB30: 42759.1589 | AC30: 59.97900009 | AD30: 136.6152191 | AE30: 59.97900009 | AF30: 136.6152191
F31: Expected Sustained Primary Frequency Response (Final) | P31: =$P$30 -> 4.739462324 | T31: Expected Sustained Primary Frequency Response (Final) | U31: =U30 -> 8344.936306 | AB31: 42759.15891 | AC31: 59.97900009 | AD31: 136.6152191 | AE31: 59.97900009 | AF31: 136.6152191
AB32: 42759.15892 | AC32: 59.97999954 | AD32: 136.5992432 | AE32: 59.97999954 | AF32: 136.5992432
F33: PUSPFR Performance | P33: =IFERROR($P$28/$P$31,0) -> 1.655146053 | Q33: Final PUSPFR Performance | R33: =IFERROR(IF($R$14="Yes",P33,"No Evaluation"),0) -> 1.655146053 | T33: PUSPFR Performance | U33: =IFERROR(U28/U31,0) -> 0 | V33: Final PUSPFR Performance | W33: =IFERROR(IF($W$14="Yes",U33,"No Evaluation"),0) -> 0 | AB33: 42759.15894 | AC33: 59.97999954 | AD33: 136.5992432 | AE33: 59.97999954 | AF33: 136.5992432
AB34: 42759.15895 | AC34: 59.98099899 | AD34: 136.7023773 | AE34: 59.98099899 | AF34: 136.7023773
AB35: 42759.15896 | AC35: 59.98099899 | AD35: 136.7023773 | AE35: 59.98099899 | AF35: 136.7023773
AB36: 42759.15897 | AC36: 59.98199844 | AD36: 136.9036407 | AE36: 59.98199844 | AF36: 136.9036407
AB37: 42759.15898 | AC37: 59.98199844 | AD37: 136.9036407 | AE37: 59.98199844 | AF37: 136.9036407
AB38: =AB39-TIME(0,0,1) -> 42759.15899 | AC38: 59.98400116 | AD38: 136.9036407 | AE38: 59.98400116 | AF38: 136.9036407
B39: Pre-Event Period | G39: Chart Values | AB39: 42759.159 | AC39: 59.98400116 | AD39: 136.9036407 | AE39: 59.98400116 | AF39: 136.9036407
B40: T(0) | AB40: 42759.15902 | AC40: 59.98500061 | AD40: 138.4755707 | AE40: 59.98500061 | AF40: 138.4755707
B41: Post-Event Period | AB41: 42759.15903 | AC41: 59.98500061 | AD41: 138.4755707 | AE41: 59.98500061 | AF41: 138.4755707
B42: Input Data | C42: Interpolated | E42: *Note that all times are in UTC time | H42: Pre and Post-Perturbation Average Values | L42: PFR Values | AB42: 42759.15904 | AC42: 59.98600006 | AD42: 138.4171295 | AE42: 59.98600006 | AF42: 138.4171295
E43: *Note that the first few rows in this might be blank depending on data provided. | AB43: 42759.15905 | AC43: 59.98500061 | AD43: 138.4171295 | AE43: 59.98500061 | AF43: 138.4171295
A44: T | B44: Offset Timestamp | C44: Offset Frequency (Hz) | D44: Offset Generator Output (MW) | E44: Average Frequency (Hz) | F44: Average Output (MW) | G44: Proxy | H44: Pre-Perturbation Frequency (Hz) | I44: Post-Perturbation Frequency (Hz) | J44: Pre-Perturbation Output (MW) | K44: Post-Perturbation Output (MW) | L44: Measured Initial Response (MW) | M44: Expected Initial PFR (MW) | N44: Measured Sustained Response (MW) | O44: Expected Sustained PFR (MW) | P44: HSL (MW) | Q44: Ideal Expected Primary Frequency Response (EPFR) (MW) | R44: Average EPFR (MW) | AB44: 42759.15906 | AC44: 59.98400116 | AD44: 139.6907806 | AE44: 59.98400116 | AF44: 139.6907806
AB45: 42759.15907 | AC45: 59.98199844 | AD45: 139.6907806 | AE45: 59.98199844 | AF45: 139.6907806
AB46: 42759.15909 | AC46: 59.98099899 | AD46: 139.6436462 | AE46: 59.98099899 | AF46: 139.6436462
AB47: 42759.1591 | AC47: 59.98099899 | AD47: 139.6436462 | AE47: 59.98099899 | AF47: 139.6436462
AB48: =AB49-TIME(0,0,1) -> 42759.15911 | AC48: 59.98099899 | AD48: 139.7684479 | AE48: 59.98099899 | AF48: 139.7684479
A49: T-72s | B49: =B50-TIME(0,0,1) -> 42759.15912 | C49: =OFFSET($AE49,-$B$1,0) -> 59.98300171 | D49: =OFFSET($AF49,-$B$1,0) -> 139.7684479 | P49: ='Main Data Entry'!$G$15 -> 415 | Q49: =IF($C49>(60+'Main Data Entry'!$D$14),(($C49-60-'Main Data Entry'!$D$14)/(60*'Main Data Entry'!$D$13-'Main Data Entry'!$D$14))*(-1)*'Main Data Entry'!$G$15,IF($C49<(60-'Main Data Entry'!$D$14),(($C49-60+'Main Data Entry'!$D$14)/(60*'Main Data Entry'!$D$13-'Main Data Entry'!$D$14))*(-1)*'Main Data Entry'!$G$15,0)) -> 0 | AB49: =AB50-TIME(0,0,1) -> 42759.15912 | AC49: 59.98300171 | AD49: 139.7684479 | AE49: 59.98300171 | AF49: 139.7684479
A50: T-71s | B50: =B51-TIME(0,0,1) -> 42759.15913 | C50: 59.98300171 | D50: 139.7684479 | P50: ='Main Data Entry'!$G$15 -> 415 | Q50: =IF($C50>(60+'Main Data Entry'!$D$14),(($C50-60-'Main Data Entry'!$D$14)/(60*'Main Data Entry'!$D$13-'Main Data Entry'!$D$14))*(-1)*'Main Data Entry'!$G$15,IF($C50<(60-'Main Data Entry'!$D$14),(($C50-60+'Main Data Entry'!$D$14)/(60*'Main Data Entry'!$D$13-'Main Data Entry'!$D$14))*(-1)*'Main Data Entry'!$G$15,0)) -> 0 | AB50: 42759.15913 | AC50: 59.98300171 | AD50: 139.7684479 | AE50: 59.98300171 | AF50: 139.7684479
A51: T-70s | B51: 42759.15914 | C51: 59.98400116 | D51: 139.7684479 | P51: ='Main Data Entry'!$G$15 -> 415 | Q51: =IF($C51>(60+'Main Data Entry'!$D$14),(($C51-60-'Main Data Entry'!$D$14)/(60*'Main Data Entry'!$D$13-'Main Data Entry'!$D$14))*(-1)*'Main Data Entry'!$G$15,IF($C51<(60-'Main Data Entry'!$D$14),(($C51-60+'Main Data Entry'!$D$14)/(60*'Main Data Entry'!$D$13-'Main Data Entry'!$D$14))*(-1)*'Main Data Entry'!$G$15,0)) -> 0 | AB51: 42759.15914 | AC51: 59.98400116 | AD51: 139.7684479 | AE51: 59.98400116 | AF51: 139.7684479
A52: T-69s | B52: 42759.15916 | C52: 59.98400116 | D52: 139.9485626 | P52: ='Main Data Entry'!$G$15 -> 415 | Q52: =IF($C52>(60+'Main Data Entry'!$D$14),(($C52-60-'Main Data Entry'!$D$14)/(60*'Main Data Entry'!$D$13-'Main Data Entry'!$D$14))*(-1)*'Main Data Entry'!$G$15,IF($C52<(60-'Main Data Entry'!$D$14),(($C52-60+'Main Data Entry'!$D$14)/(60*'Main Data Entry'!$D$13-'Main Data Entry'!$D$14))*(-1)*'Main Data Entry'!$G$15,0)) -> 0 | AB52: 42759.15916 | AC52: 59.98400116 | AD52: 139.9485626 | AE52: 59.98400116 | AF52: 139.9485626
A53: T-68s | B53: 42759.15917 | C53: 59.98300171 | D53: 139.9485626 | P53: ='Main Data Entry'!$G$15 -> 415 | Q53: =IF($C53>(60+'Main Data Entry'!$D$14),(($C53-60-'Main Data Entry'!$D$14)/(60*'Main Data Entry'!$D$13-'Main Data Entry'!$D$14))*(-1)*'Main Data Entry'!$G$15,IF($C53<(60-'Main Data Entry'!$D$14),(($C53-60+'Main Data Entry'!$D$14)/(60*'Main Data Entry'!$D$13-'Main Data Entry'!$D$14))*(-1)*'Main Data Entry'!$G$15,0)) -> 0 | AB53: 42759.15917 | AC53: 59.98300171 | AD53: 139.9485626 | AE53: 59.98300171 | AF53: 139.9485626
A54: T-67s | B54: 42759.15918 | C54: 59.98199844 | D54: 139.9485626 | P54: ='Main Data Entry'!$G$15 -> 415 | Q54: =IF($C54>(60+'Main Data Entry'!$D$14),(($C54-60-'Main Data Entry'!$D$14)/(60*'Main Data Entry'!$D$13-'Main Data Entry'!$D$14))*(-1)*'Main Data Entry'!$G$15,IF($C54<(60-'Main Data Entry'!$D$14),(($C54-60+'Main Data Entry'!$D$14)/(60*'Main Data Entry'!$D$13-'Main Data Entry'!$D$14))*(-1)*'Main Data Entry'!$G$15,0)) -> 0.1393382181 | AB54: 42759.15918 | AC54: 59.98199844 | AD54: 139.9485626 | AE54: 59.98199844 | AF54: 139.9485626
A55: T-66s | B55: 42759.15919 | C55: 59.98199844 | D55: 139.9485626 | P55: ='Main Data Entry'!$G$15 -> 415 | Q55: =IF($C55>(60+'Main Data Entry'!$D$14),(($C55-60-'Main Data Entry'!$D$14)/(60*'Main Data Entry'!$D$13-'Main Data Entry'!$D$14))*(-1)*'Main Data Entry'!$G$15,IF($C55<(60-'Main Data Entry'!$D$14),(($C55-60+'Main Data Entry'!$D$14)/(60*'Main Data Entry'!$D$13-'Main Data Entry'!$D$14))*(-1)*'Main Data Entry'!$G$15,0)) -> 0.1393382181 | AB55: 42759.15919 | AC55: 59.98199844 | AD55: 139.9485626 | AE55: 59.98199844 | AF55: 139.9485626
A56: T-65s | B56: 42759.1592 | C56: 59.97900009 | D56: 139.9485626 | P56: ='Main Data Entry'!$G$15 -> 415 | Q56: =IF($C56>(60+'Main Data Entry'!$D$14),(($C56-60-'Main Data Entry'!$D$14)/(60*'Main Data Entry'!$D$13-'Main Data Entry'!$D$14))*(-1)*'Main Data Entry'!$G$15,IF($C56<(60-'Main Data Entry'!$D$14),(($C56-60+'Main Data Entry'!$D$14)/(60*'Main Data Entry'!$D$13-'Main Data Entry'!$D$14))*(-1)*'Main Data Entry'!$G$15,0)) -> 0.5564740213 | AB56: 42759.1592 | AC56: 59.97900009 | AD56: 139.9485626 | AE56: 59.97900009 | AF56: 139.9485626
A57: T-64s | B57: 42759.15921 | C57: 59.97800064 | D57: 139.9485626 | P57: ='Main Data Entry'!$G$15 -> 415 | Q57: =IF($C57>(60+'Main Data Entry'!$D$14),(($C57-60-'Main Data Entry'!$D$14)/(60*'Main Data Entry'!$D$13-'Main Data Entry'!$D$14))*(-1)*'Main Data Entry'!$G$15,IF($C57<(60-'Main Data Entry'!$D$14),(($C57-60+'Main Data Entry'!$D$14)/(60*'Main Data Entry'!$D$13-'Main Data Entry'!$D$14))*(-1)*'Main Data Entry'!$G$15,0)) -> 0.6955192891 | AB57: 42759.15921 | AC57: 59.97800064 | AD57: 139.9485626 | AE57: 59.97800064 | AF57: 139.9485626
A58: T-63s | B58: 42759.15922 | C58: 59.97700119 | D58: 139.9485626 | P58: ='Main Data Entry'!$G$15 -> 415 | Q58: =IF($C58>(60+'Main Data Entry'!$D$14),(($C58-60-'Main Data Entry'!$D$14)/(60*'Main Data Entry'!$D$13-'Main Data Entry'!$D$14))*(-1)*'Main Data Entry'!$G$15,IF($C58<(60-'Main Data Entry'!$D$14),(($C58-60+'Main Data Entry'!$D$14)/(60*'Main Data Entry'!$D$13-'Main Data Entry'!$D$14))*(-1)*'Main Data Entry'!$G$15,0)) -> 0.8345645568 | AB58: 42759.15922 | AC58: 59.97700119 | AD58: 139.9485626 | AE58: 59.97700119 | AF58: 139.9485626
A59: T-62s | B59: 42759.15924 | C59: 59.97600174 | D59: 139.9485626 | P59: ='Main Data Entry'!$G$15 -> 415 | Q59: =IF($C59>(60+'Main Data Entry'!$D$14),(($C59-60-'Main Data Entry'!$D$14)/(60*'Main Data Entry'!$D$13-'Main Data Entry'!$D$14))*(-1)*'Main Data Entry'!$G$15,IF($C59<(60-'Main Data Entry'!$D$14),(($C59-60+'Main Data Entry'!$D$14)/(60*'Main Data Entry'!$D$13-'Main Data Entry'!$D$14))*(-1)*'Main Data Entry'!$G$15,0)) -> 0.9736098246 | AB59: 42759.15924 | AC59: 59.97600174 | AD59: 139.9485626 | AE59: 59.97600174 | AF59: 139.9485626
A60: T-61s | B60: 42759.15925 | C60: 59.97700119 | D60: 139.9485626 | P60: ='Main Data Entry'!$G$15 -> 415 | Q60: =IF($C60>(60+'Main Data Entry'!$D$14),(($C60-60-'Main Data Entry'!$D$14)/(60*'Main Data Entry'!$D$13-'Main Data Entry'!$D$14))*(-1)*'Main Data Entry'!$G$15,IF($C60<(60-'Main Data Entry'!$D$14),(($C60-60+'Main Data Entry'!$D$14)/(60*'Main Data Entry'!$D$13-'Main Data Entry'!$D$14))*(-1)*'Main Data Entry'!$G$15,0)) -> 0.8345645568 | AB60: 42759.15925 | AC60: 59.97700119 | AD60: 139.9485626 | AE60: 59.97700119 | AF60: 139.9485626
A61: T-60s | B61: 42759.15926 | C61: 59.97800064 | D61: 139.9485626 | P61: ='Main Data Entry'!$G$15 -> 415 | Q61: =IF($C61>(60+'Main Data Entry'!$D$14),(($C61-60-'Main Data Entry'!$D$14)/(60*'Main Data Entry'!$D$13-'Main Data Entry'!$D$14))*(-1)*'Main Data Entry'!$G$15,IF($C61<(60-'Main Data Entry'!$D$14),(($C61-60+'Main Data Entry'!$D$14)/(60*'Main Data Entry'!$D$13-'Main Data Entry'!$D$14))*(-1)*'Main Data Entry'!$G$15,0)) -> 0.6955192891 | AB61: 42759.15926 | AC61: 59.97800064 | AD61: 139.9485626 | AE61: 59.97800064 | AF61: 139.9485626
A62: T-59s | B62: 42759.15927 | C62: 59.97900009 | D62: 139.9485626 | P62: ='Main Data Entry'!$G$15 -> 415 | Q62: =IF($C62>(60+'Main Data Entry'!$D$14),(($C62-60-'Main Data Entry'!$D$14)/(60*'Main Data Entry'!$D$13-'Main Data Entry'!$D$14))*(-1)*'Main Data Entry'!$G$15,IF($C62<(60-'Main Data Entry'!$D$14),(($C62-60+'Main Data Entry'!$D$14)/(60*'Main Data Entry'!$D$13-'Main Data Entry'!$D$14))*(-1)*'Main Data Entry'!$G$15,0)) -> 0.5564740213 | AB62: 42759.15927 | AC62: 59.97900009 | AD62: 139.9485626 | AE62: 59.97900009 | AF62: 139.9485626
A63: T-58s | B63: 42759.15928 | C63: 59.97900009 | D63: 139.9485626 | P63: ='Main Data Entry'!$G$15 -> 415 | Q63: =IF($C63>(60+'Main Data Entry'!$D$14),(($C63-60-'Main Data Entry'!$D$14)/(60*'Main Data Entry'!$D$13-'Main Data Entry'!$D$14))*(-1)*'Main Data Entry'!$G$15,IF($C63<(60-'Main Data Entry'!$D$14),(($C63-60+'Main Data Entry'!$D$14)/(60*'Main Data Entry'!$D$13-'Main Data Entry'!$D$14))*(-1)*'Main Data Entry'!$G$15,0)) -> 0.5564740213 | AB63: 42759.15928 | AC63: 59.97900009 | AD63: 139.9485626 | AE63: 59.97900009 | AF63: 139.9485626
A64: T-57s | B64: 42759.15929 | C64: 59.97900009 | D64: 141.0288849 | P64: ='Main Data Entry'!$G$15 -> 415 | Q64: =IF($C64>(60+'Main Data Entry'!$D$14),(($C64-60-'Main Data Entry'!$D$14)/(60*'Main Data Entry'!$D$13-'Main Data Entry'!$D$14))*(-1)*'Main Data Entry'!$G$15,IF($C64<(60-'Main Data Entry'!$D$14),(($C64-60+'Main Data Entry'!$D$14)/(60*'Main Data Entry'!$D$13-'Main Data Entry'!$D$14))*(-1)*'Main Data Entry'!$G$15,0)) -> 0.5564740213 | AB64: 42759.15929 | AC64: 59.97900009 | AD64: 141.0288849 | AE64: 59.97900009 | AF64: 141.0288849
A65: T-56s | B65: 42759.15931 | C65: 59.97900009 | D65: 141.0288849 | P65: ='Main Data Entry'!$G$15 -> 415 | Q65: =IF($C65>(60+'Main Data Entry'!$D$14),(($C65-60-'Main Data Entry'!$D$14)/(60*'Main Data Entry'!$D$13-'Main Data Entry'!$D$14))*(-1)*'Main Data Entry'!$G$15,IF($C65<(60-'Main Data Entry'!$D$14),(($C65-60+'Main Data Entry'!$D$14)/(60*'Main Data Entry'!$D$13-'Main Data Entry'!$D$14))*(-1)*'Main Data Entry'!$G$15,0)) -> 0.5564740213 | AB65: =AB66-TIME(0,0,1) -> 42759.15931 | AC65: 59.97900009 | AD65: 141.0288849 | AE65: 59.97900009 | AF65: 141.0288849
A66: T-55s | B66: 42759.15932 | C66: 59.97999954 | D66: 140.988678 | P66: ='Main Data Entry'!$G$15 -> 415 | Q66: =IF($C66>(60+'Main Data Entry'!$D$14),(($C66-60-'Main Data Entry'!$D$14)/(60*'Main Data Entry'!$D$13-'Main Data Entry'!$D$14))*(-1)*'Main Data Entry'!$G$15,IF($C66<(60-'Main Data Entry'!$D$14),(($C66-60+'Main Data Entry'!$D$14)/(60*'Main Data Entry'!$D$13-'Main Data Entry'!$D$14))*(-1)*'Main Data Entry'!$G$15,0)) -> 0.4174287536 | AB66: 42759.15932 | AC66: 59.97999954 | AD66: 140.988678 | AE66: 59.97999954 | AF66: 140.988678
A67: T-54s | B67: 42759.15933 | C67: 59.97999954 | D67: 140.988678 | P67: ='Main Data Entry'!$G$15 -> 415 | Q67: =IF($C67>(60+'Main Data Entry'!$D$14),(($C67-60-'Main Data Entry'!$D$14)/(60*'Main Data Entry'!$D$13-'Main Data Entry'!$D$14))*(-1)*'Main Data Entry'!$G$15,IF($C67<(60-'Main Data Entry'!$D$14),(($C67-60+'Main Data Entry'!$D$14)/(60*'Main Data Entry'!$D$13-'Main Data Entry'!$D$14))*(-1)*'Main Data Entry'!$G$15,0)) -> 0.4174287536 | AB67: 42759.15933 | AC67: 59.97999954 | AD67: 140.988678 | AE67: 59.97999954 | AF67: 140.988678
A68: T-53s | B68: 42759.15934 | C68: 59.97900009 | D68: 141.1952362 | P68: ='Main Data Entry'!$G$15 -> 415 | Q68: =IF($C68>(60+'Main Data Entry'!$D$14),(($C68-60-'Main Data Entry'!$D$14)/(60*'Main Data Entry'!$D$13-'Main Data Entry'!$D$14))*(-1)*'Main Data Entry'!$G$15,IF($C68<(60-'Main Data Entry'!$D$14),(($C68-60+'Main Data Entry'!$D$14)/(60*'Main Data Entry'!$D$13-'Main Data Entry'!$D$14))*(-1)*'Main Data Entry'!$G$15,0)) -> 0.5564740213 | AB68: 42759.15934 | AC68: 59.97900009 | AD68: 141.1952362 | AE68: 59.97900009 | AF68: 141.1952362
A69: T-52s | B69: 42759.15935 | C69: 59.97600174 | D69: 141.1952362 | P69: ='Main Data Entry'!$G$15 -> 415 | Q69: =IF($C69>(60+'Main Data Entry'!$D$14),(($C69-60-'Main Data Entry'!$D$14)/(60*'Main Data Entry'!$D$13-'Main Data Entry'!$D$14))*(-1)*'Main Data Entry'!$G$15,IF($C69<(60-'Main Data Entry'!$D$14),(($C69-60+'Main Data Entry'!$D$14)/(60*'Main Data Entry'!$D$13-'Main Data Entry'!$D$14))*(-1)*'Main Data Entry'!$G$15,0)) -> 0.9736098246 | AB69: 42759.15935 | AC69: 59.97600174 | AD69: 141.1952362 | AE69: 59.97600174 | AF69: 141.1952362
A70: T-51s | B70: 42759.15936 | C70: 59.97499847 | D70: 141.1952362 | P70: ='Main Data Entry'!$G$15 -> 415 | Q70: =IF($C70>(60+'Main Data Entry'!$D$14),(($C70-60-'Main Data Entry'!$D$14)/(60*'Main Data Entry'!$D$13-'Main Data Entry'!$D$14))*(-1)*'Main Data Entry'!$G$15,IF($C70<(60-'Main Data Entry'!$D$14),(($C70-60+'Main Data Entry'!$D$14)/(60*'Main Data Entry'!$D$13-'Main Data Entry'!$D$14))*(-1)*'Main Data Entry'!$G$15,0)) -> 1.113185799 | AB70: 42759.15936 | AC70: 59.97499847 | AD70: 141.1952362 | AE70: 59.97499847 | AF70: 141.1952362
A71: T-50s | B71: 42759.15937 | C71: 59.97499847 | D71: 141.1952362 | P71: ='Main Data Entry'!$G$15 -> 415 | Q71: =IF($C71>(60+'Main Data Entry'!$D$14),(($C71-60-'Main Data Entry'!$D$14)/(60*'Main Data Entry'!$D$13-'Main Data Entry'!$D$14))*(-1)*'Main Data Entry'!$G$15,IF($C71<(60-'Main Data Entry'!$D$14),(($C71-60+'Main Data Entry'!$D$14)/(60*'Main Data Entry'!$D$13-'Main Data Entry'!$D$14))*(-1)*'Main Data Entry'!$G$15,0)) -> 1.113185799 | AB71: 42759.15937 | AC71: 59.97499847 | AD71: 141.1952362 | AE71: 59.97499847 | AF71: 141.1952362
A72: T-49s | B72: 42759.15939 | C72: 59.97399902 | D72: 140.2240143 | P72: ='Main Data Entry'!$G$15 -> 415 | Q72: =IF($C72>(60+'Main Data Entry'!$D$14),(($C72-60-'Main Data Entry'!$D$14)/(60*'Main Data Entry'!$D$13-'Main Data Entry'!$D$14))*(-1)*'Main Data Entry'!$G$15,IF($C72<(60-'Main Data Entry'!$D$14),(($C72-60+'Main Data Entry'!$D$14)/(60*'Main Data Entry'!$D$13-'Main Data Entry'!$D$14))*(-1)*'Main Data Entry'!$G$15,0)) -> 1.252231067 | AB72: 42759.15939 | AC72: 59.97399902 | AD72: 140.2240143 | AE72: 59.97399902 | AF72: 140.2240143
A73: T-48s | B73: 42759.1594 | C73: 59.97399902 | D73: 140.2240143 | P73: ='Main Data Entry'!$G$15 -> 415 | Q73: =IF($C73>(60+'Main Data Entry'!$D$14),(($C73-60-'Main Data Entry'!$D$14)/(60*'Main Data Entry'!$D$13-'Main Data Entry'!$D$14))*(-1)*'Main Data Entry'!$G$15,IF($C73<(60-'Main Data Entry'!$D$14),(($C73-60+'Main Data Entry'!$D$14)/(60*'Main Data Entry'!$D$13-'Main Data Entry'!$D$14))*(-1)*'Main Data Entry'!$G$15,0)) -> 1.252231067 | AB73: 42759.1594 | AC73: 59.97399902 | AD73: 140.2240143 | AE73: 59.97399902 | AF73: 140.2240143
A74: T-47s | B74: 42759.15941 | C74: 59.97399902 | D74: 140.2596588 | P74: ='Main Data Entry'!$G$15 -> 415 | Q74: =IF($C74>(60+'Main Data Entry'!$D$14),(($C74-60-'Main Data Entry'!$D$14)/(60*'Main Data Entry'!$D$13-'Main Data Entry'!$D$14))*(-1)*'Main Data Entry'!$G$15,IF($C74<(60-'Main Data Entry'!$D$14),(($C74-60+'Main Data Entry'!$D$14)/(60*'Main Data Entry'!$D$13-'Main Data Entry'!$D$14))*(-1)*'Main Data Entry'!$G$15,0)) -> 1.252231067 | AB74: 42759.15941 | AC74: 59.97399902 | AD74: 140.2596588 | AE74: 59.97399902 | AF74: 140.2596588
A75: T-46s | B75: 42759.15942 | C75: 59.97499847 | D75: 140.2596588 | P75: ='Main Data Entry'!$G$15 -> 415 | Q75: =IF($C75>(60+'Main Data Entry'!$D$14),(($C75-60-'Main Data Entry'!$D$14)/(60*'Main Data Entry'!$D$13-'Main Data Entry'!$D$14))*(-1)*'Main Data Entry'!$G$15,IF($C75<(60-'Main Data Entry'!$D$14),(($C75-60+'Main Data Entry'!$D$14)/(60*'Main Data Entry'!$D$13-'Main Data Entry'!$D$14))*(-1)*'Main Data Entry'!$G$15,0)) -> 1.113185799 | AB75: 42759.15942 | AC75: 59.97499847 | AD75: 140.2596588 | AE75: 59.97499847 | AF75: 140.2596588
A76: T-45s | B76: 42759.15943 | C76: 59.97600174 | D76: 140.2596588 | P76: ='Main Data Entry'!$G$15 -> 415 | Q76: =IF($C76>(60+'Main Data Entry'!$D$14),(($C76-60-'Main Data Entry'!$D$14)/(60*'Main Data Entry'!$D$13-'Main Data Entry'!$D$14))*(-1)*'Main Data Entry'!$G$15,IF($C76<(60-'Main Data Entry'!$D$14),(($C76-60+'Main Data Entry'!$D$14)/(60*'Main Data Entry'!$D$13-'Main Data Entry'!$D$14))*(-1)*'Main Data Entry'!$G$15,0)) -> 0.9736098246 | AB76: 42759.15943 | AC76: 59.97600174 | AD76: 140.2596588 | AE76: =IF($AC76="",$AE75,IF($AC76<>$AE75,$AC76,$AE75)) -> 59.97600174 | AF76: =IF($AD76="",$AF75,IF($AD76<>$AF75,$AD76,$AF75)) -> 140.2596588
A77: T-44s | B77: 42759.15944 | C77: 59.97800064 | D77: 140.2596588 | P77: ='Main Data Entry'!$G$15 -> 415 | Q77: =IF($C77>(60+'Main Data Entry'!$D$14),(($C77-60-'Main Data Entry'!$D$14)/(60*'Main Data Entry'!$D$13-'Main Data Entry'!$D$14))*(-1)*'Main Data Entry'!$G$15,IF($C77<(60-'Main Data Entry'!$D$14),(($C77-60+'Main Data Entry'!$D$14)/(60*'Main Data Entry'!$D$13-'Main Data Entry'!$D$14))*(-1)*'Main Data Entry'!$G$15,0)) -> 0.6955192891 | AB77: 42759.15944 | AC77: 59.97800064 | AD77: 140.2596588 | AE77: 59.97800064 | AF77: 140.2596588
A78: T-43s | B78: 42759.15946 | C78: 59.97800064 | D78: 140.2596588 | P78: ='Main Data Entry'!$G$15 -> 415 | Q78: =IF($C78>(60+'Main Data Entry'!$D$14),(($C78-60-'Main Data Entry'!$D$14)/(60*'Main Data Entry'!$D$13-'Main Data Entry'!$D$14))*(-1)*'Main Data Entry'!$G$15,IF($C78<(60-'Main Data Entry'!$D$14),(($C78-60+'Main Data Entry'!$D$14)/(60*'Main Data Entry'!$D$13-'Main Data Entry'!$D$14))*(-1)*'Main Data Entry'!$G$15,0)) -> 0.6955192891 | AB78: 42759.15946 | AC78: 59.97800064 | AD78: 140.2596588 | AE78: 59.97800064 | AF78: 140.2596588
A79: T-42s | B79: 42759.15947 | C79: 59.97800064 | D79: 140.2596588 | P79: ='Main Data Entry'!$G$15 -> 415 | Q79: =IF($C79>(60+'Main Data Entry'!$D$14),(($C79-60-'Main Data Entry'!$D$14)/(60*'Main Data Entry'!$D$13-'Main Data Entry'!$D$14))*(-1)*'Main Data Entry'!$G$15,IF($C79<(60-'Main Data Entry'!$D$14),(($C79-60+'Main Data Entry'!$D$14)/(60*'Main Data Entry'!$D$13-'Main Data Entry'!$D$14))*(-1)*'Main Data Entry'!$G$15,0)) -> 0.6955192891 | AB79: 42759.15947 | AC79: 59.97800064 | AD79: 140.2596588 | AE79: 59.97800064 | AF79: 140.2596588
A80: T-41s | B80: 42759.15948 | C80: 59.97900009 | D80: 140.9966736 | P80: ='Main Data Entry'!$G$15 -> 415 | Q80: =IF($C80>(60+'Main Data Entry'!$D$14),(($C80-60-'Main Data Entry'!$D$14)/(60*'Main Data Entry'!$D$13-'Main Data Entry'!$D$14))*(-1)*'Main Data Entry'!$G$15,IF($C80<(60-'Main Data Entry'!$D$14),(($C80-60+'Main Data Entry'!$D$14)/(60*'Main Data Entry'!$D$13-'Main Data Entry'!$D$14))*(-1)*'Main Data Entry'!$G$15,0)) -> 0.5564740213 | AB80: 42759.15948 | AC80: 59.97900009 | AD80: 140.9966736 | AE80: 59.97900009 | AF80: 140.9966736
A81: T-40s | B81: 42759.15949 | C81: =OFFSET($AE81,-$B$1,0) -> 59.97999954 | D81: =OFFSET($AF81,-$B$1,0) -> 140.9966736 | P81: ='Main Data Entry'!$G$15 -> 415 | Q81: =IF($C81>(60+'Main Data Entry'!$D$14),(($C81-60-'Main Data Entry'!$D$14)/(60*'Main Data Entry'!$D$13-'Main Data Entry'!$D$14))*(-1)*'Main Data Entry'!$G$15,IF($C81<(60-'Main Data Entry'!$D$14),(($C81-60+'Main Data Entry'!$D$14)/(60*'Main Data Entry'!$D$13-'Main Data Entry'!$D$14))*(-1)*'Main Data Entry'!$G$15,0)) -> 0.4174287536 | AB81: =AB82-TIME(0,0,1) -> 42759.15949 | AC81: 59.97999954 | AD81: 140.9966736 | AE81: 59.97999954 | AF81: 140.9966736
A82: T-39s | B82: 42759.1595 | C82: 59.97999954 | D82: 140.9693604 | P82: ='Main Data Entry'!$G$15 -> 415 | Q82: =IF($C82>(60+'Main Data Entry'!$D$14),(($C82-60-'Main Data Entry'!$D$14)/(60*'Main Data Entry'!$D$13-'Main Data Entry'!$D$14))*(-1)*'Main Data Entry'!$G$15,IF($C82<(60-'Main Data Entry'!$D$14),(($C82-60+'Main Data Entry'!$D$14)/(60*'Main Data Entry'!$D$13-'Main Data Entry'!$D$14))*(-1)*'Main Data Entry'!$G$15,0)) -> 0.4174287536 | AB82: 42759.1595 | AC82: 59.97999954 | AD82: 140.9693604 | AE82: 59.97999954 | AF82: 140.9693604
A83: T-38s | B83: 42759.15951 | C83: 59.97999954 | D83: 140.9693604 | P83: ='Main Data Entry'!$G$15 -> 415 | Q83: =IF($C83>(60+'Main Data Entry'!$D$14),(($C83-60-'Main Data Entry'!$D$14)/(60*'Main Data Entry'!$D$13-'Main Data Entry'!$D$14))*(-1)*'Main Data Entry'!$G$15,IF($C83<(60-'Main Data Entry'!$D$14),(($C83-60+'Main Data Entry'!$D$14)/(60*'Main Data Entry'!$D$13-'Main Data Entry'!$D$14))*(-1)*'Main Data Entry'!$G$15,0)) -> 0.4174287536 | AB83: 42759.15951 | AC83: 59.97999954 | AD83: 140.9693604 | AE83: 59.97999954 | AF83: 140.9693604
A84: T-37s | B84: 42759.15953 | C84: 59.97999954 | D84: 142.7750549 | P84: ='Main Data Entry'!$G$15 -> 415 | Q84: =IF($C84>(60+'Main Data Entry'!$D$14),(($C84-60-'Main Data Entry'!$D$14)/(60*'Main Data Entry'!$D$13-'Main Data Entry'!$D$14))*(-1)*'Main Data Entry'!$G$15,IF($C84<(60-'Main Data Entry'!$D$14),(($C84-60+'Main Data Entry'!$D$14)/(60*'Main Data Entry'!$D$13-'Main Data Entry'!$D$14))*(-1)*'Main Data Entry'!$G$15,0)) -> 0.4174287536 | AB84: 42759.15953 | AC84: 59.97999954 | AD84: 142.7750549 | AE84: 59.97999954 | AF84: 142.7750549
A85: T-36s | B85: 42759.15954 | C85: 59.97900009 | D85: 142.7750549 | P85: ='Main Data Entry'!$G$15 -> 415 | Q85: =IF($C85>(60+'Main Data Entry'!$D$14),(($C85-60-'Main Data Entry'!$D$14)/(60*'Main Data Entry'!$D$13-'Main Data Entry'!$D$14))*(-1)*'Main Data Entry'!$G$15,IF($C85<(60-'Main Data Entry'!$D$14),(($C85-60+'Main Data Entry'!$D$14)/(60*'Main Data Entry'!$D$13-'Main Data Entry'!$D$14))*(-1)*'Main Data Entry'!$G$15,0)) -> 0.5564740213 | AB85: 42759.15954 | AC85: 59.97900009 | AD85: 142.7750549 | AE85: 59.97900009 | AF85: 142.7750549
A86: T-35s | B86: 42759.15955 | C86: 59.97900009 | D86: 142.7082367 | P86: ='Main Data Entry'!$G$15 -> 415 | Q86: =IF($C86>(60+'Main Data Entry'!$D$14),(($C86-60-'Main Data Entry'!$D$14)/(60*'Main Data Entry'!$D$13-'Main Data Entry'!$D$14))*(-1)*'Main Data Entry'!$G$15,IF($C86<(60-'Main Data Entry'!$D$14),(($C86-60+'Main Data Entry'!$D$14)/(60*'Main Data Entry'!$D$13-'Main Data Entry'!$D$14))*(-1)*'Main Data Entry'!$G$15,0)) -> 0.5564740213 | AB86: 42759.15955 | AC86: 59.97900009 | AD86: 142.7082367 | AE86: 59.97900009 | AF86: 142.7082367
A87: T-34s | B87: 42759.15956 | C87: 59.97800064 | D87: 142.7082367 | P87: ='Main Data Entry'!$G$15 -> 415 | Q87: =IF($C87>(60+'Main Data Entry'!$D$14),(($C87-60-'Main Data Entry'!$D$14)/(60*'Main Data Entry'!$D$13-'Main Data Entry'!$D$14))*(-1)*'Main Data Entry'!$G$15,IF($C87<(60-'Main Data Entry'!$D$14),(($C87-60+'Main Data Entry'!$D$14)/(60*'Main Data Entry'!$D$13-'Main Data Entry'!$D$14))*(-1)*'Main Data Entry'!$G$15,0)) -> 0.6955192891 | AB87: 42759.15956 | AC87: 59.97800064 | AD87: 142.7082367 | AE87: 59.97800064 | AF87: 142.7082367
A88: T-33s | B88: 42759.15957 | C88: 59.97800064 | D88: 143.5310364 | P88: ='Main Data Entry'!$G$15 -> 415 | Q88: =IF($C88>(60+'Main Data Entry'!$D$14),(($C88-60-'Main Data Entry'!$D$14)/(60*'Main Data Entry'!$D$13-'Main Data Entry'!$D$14))*(-1)*'Main Data Entry'!$G$15,IF($C88<(60-'Main Data Entry'!$D$14),(($C88-60+'Main Data Entry'!$D$14)/(60*'Main Data Entry'!$D$13-'Main Data Entry'!$D$14))*(-1)*'Main Data Entry'!$G$15,0)) -> 0.6955192891 | AB88: 42759.15957 | AC88: 59.97800064 | AD88: 143.5310364 | AE88: 59.97800064 | AF88: 143.5310364
A89: T-32s | B89: 42759.15958 | C89: 59.97700119 | D89: 143.5310364 | P89: ='Main Data Entry'!$G$15 -> 415 | Q89: =IF($C89>(60+'Main Data Entry'!$D$14),(($C89-60-'Main Data Entry'!$D$14)/(60*'Main Data Entry'!$D$13-'Main Data Entry'!$D$14))*(-1)*'Main Data Entry'!$G$15,IF($C89<(60-'Main Data Entry'!$D$14),(($C89-60+'Main Data Entry'!$D$14)/(60*'Main Data Entry'!$D$13-'Main Data Entry'!$D$14))*(-1)*'Main Data Entry'!$G$15,0)) -> 0.8345645568 | AB89: 42759.15958 | AC89: 59.97700119 | AD89: 143.5310364 | AE89: 59.97700119 | AF89: 143.5310364
A90: T-31s | B90: 42759.15959 | C90: 59.97800064 | D90: 143.5005798 | P90: ='Main Data Entry'!$G$15 -> 415 | Q90: =IF($C90>(60+'Main Data Entry'!$D$14),(($C90-60-'Main Data Entry'!$D$14)/(60*'Main Data Entry'!$D$13-'Main Data Entry'!$D$14))*(-1)*'Main Data Entry'!$G$15,IF($C90<(60-'Main Data Entry'!$D$14),(($C90-60+'Main Data Entry'!$D$14)/(60*'Main Data Entry'!$D$13-'Main Data Entry'!$D$14))*(-1)*'Main Data Entry'!$G$15,0)) -> 0.6955192891 | AB90: 42759.15959 | AC90: 59.97800064 | AD90: 143.5005798 | AE90: 59.97800064 | AF90: 143.5005798
A91: T-30s | B91: 42759.15961 | C91: 59.97800064 | D91: 143.5005798 | P91: ='Main Data Entry'!$G$15 -> 415 | Q91: =IF($C91>(60+'Main Data Entry'!$D$14),(($C91-60-'Main Data Entry'!$D$14)/(60*'Main Data Entry'!$D$13-'Main Data Entry'!$D$14))*(-1)*'Main Data Entry'!$G$15,IF($C91<(60-'Main Data Entry'!$D$14),(($C91-60+'Main Data Entry'!$D$14)/(60*'Main Data Entry'!$D$13-'Main Data Entry'!$D$14))*(-1)*'Main Data Entry'!$G$15,0)) -> 0.6955192891 | AB91: 42759.15961 | AC91: 59.97800064 | AD91: 143.5005798 | AE91: 59.97800064 | AF91: 143.5005798
A92: T-29s | B92: 42759.15962 | C92: 59.97800064 | D92: 142.9890137 | P92: ='Main Data Entry'!$G$15 -> 415 | Q92: =IF($C92>(60+'Main Data Entry'!$D$14),(($C92-60-'Main Data Entry'!$D$14)/(60*'Main Data Entry'!$D$13-'Main Data Entry'!$D$14))*(-1)*'Main Data Entry'!$G$15,IF($C92<(60-'Main Data Entry'!$D$14),(($C92-60+'Main Data Entry'!$D$14)/(60*'Main Data Entry'!$D$13-'Main Data Entry'!$D$14))*(-1)*'Main Data Entry'!$G$15,0)) -> 0.6955192891 | AB92: 42759.15962 | AC92: 59.97800064 | AD92: 142.9890137 | AE92: 59.97800064 | AF92: 142.9890137
A93: T-28s | B93: 42759.15963 | C93: 59.97600174 | D93: 142.9890137 | P93: ='Main Data Entry'!$G$15 -> 415 | Q93: =IF($C93>(60+'Main Data Entry'!$D$14),(($C93-60-'Main Data Entry'!$D$14)/(60*'Main Data Entry'!$D$13-'Main Data Entry'!$D$14))*(-1)*'Main Data Entry'!$G$15,IF($C93<(60-'Main Data Entry'!$D$14),(($C93-60+'Main Data Entry'!$D$14)/(60*'Main Data Entry'!$D$13-'Main Data Entry'!$D$14))*(-1)*'Main Data Entry'!$G$15,0)) -> 0.9736098246 | AB93: 42759.15963 | AC93: 59.97600174 | AD93: 142.9890137 | AE93: 59.97600174 | AF93: 142.9890137
A94: T-27s | B94: 42759.15964 | C94: 59.97600174 | D94: 143.0079498 | P94: ='Main Data Entry'!$G$15 -> 415 | Q94: =IF($C94>(60+'Main Data Entry'!$D$14),(($C94-60-'Main Data Entry'!$D$14)/(60*'Main Data Entry'!$D$13-'Main Data Entry'!$D$14))*(-1)*'Main Data Entry'!$G$15,IF($C94<(60-'Main Data Entry'!$D$14),(($C94-60+'Main Data Entry'!$D$14)/(60*'Main Data Entry'!$D$13-'Main Data Entry'!$D$14))*(-1)*'Main Data Entry'!$G$15,0)) -> 0.9736098246 | AB94: 42759.15964 | AC94: 59.97600174 | AD94: 143.0079498 | AE94: 59.97600174 | AF94: 143.0079498
A95: T-26s | B95: 42759.15965 | C95: 59.97600174 | D95: 143.0079498 | P95: ='Main Data Entry'!$G$15 -> 415 | Q95: =IF($C95>(60+'Main Data Entry'!$D$14),(($C95-60-'Main Data Entry'!$D$14)/(60*'Main Data Entry'!$D$13-'Main Data Entry'!$D$14))*(-1)*'Main Data Entry'!$G$15,IF($C95<(60-'Main Data Entry'!$D$14),(($C95-60+'Main Data Entry'!$D$14)/(60*'Main Data Entry'!$D$13-'Main Data Entry'!$D$14))*(-1)*'Main Data Entry'!$G$15,0)) -> 0.9736098246 | AB95: 42759.15965 | AC95: 59.97600174 | AD95: 143.0079498 | AE95: 59.97600174 | AF95: 143.0079498
A96: T-25s | B96: 42759.15966 | C96: 59.97600174 | D96: 143.0892792 | P96: ='Main Data Entry'!$G$15 -> 415 | Q96: =IF($C96>(60+'Main Data Entry'!$D$14),(($C96-60-'Main Data Entry'!$D$14)/(60*'Main Data Entry'!$D$13-'Main Data Entry'!$D$14))*(-1)*'Main Data Entry'!$G$15,IF($C96<(60-'Main Data Entry'!$D$14),(($C96-60+'Main Data Entry'!$D$14)/(60*'Main Data Entry'!$D$13-'Main Data Entry'!$D$14))*(-1)*'Main Data Entry'!$G$15,0)) -> 0.9736098246 | AB96: 42759.15966 | AC96: 59.97600174 | AD96: 143.0892792 | AE96: 59.97600174 | AF96: 143.0892792
A97: T-24s | B97: 42759.15968 | C97: 59.97600174 | D97: 143.0892792 | P97: ='Main Data Entry'!$G$15 -> 415 | Q97: =IF($C97>(60+'Main Data Entry'!$D$14),(($C97-60-'Main Data Entry'!$D$14)/(60*'Main Data Entry'!$D$13-'Main Data Entry'!$D$14))*(-1)*'Main Data Entry'!$G$15,IF($C97<(60-'Main Data Entry'!$D$14),(($C97-60+'Main Data Entry'!$D$14)/(60*'Main Data Entry'!$D$13-'Main Data Entry'!$D$14))*(-1)*'Main Data Entry'!$G$15,0)) -> 0.9736098246 | AB97: =AB98-TIME(0,0,1) -> 42759.15968 | AC97: 59.97600174 | AD97: 143.0892792 | AE97: 59.97600174 | AF97: 143.0892792
A98: T-23s | B98: 42759.15969 | C98: 59.97700119 | D98: 143.0892792 | P98: ='Main Data Entry'!$G$15 -> 415 | Q98: =IF($C98>(60+'Main Data Entry'!$D$14),(($C98-60-'Main Data Entry'!$D$14)/(60*'Main Data Entry'!$D$13-'Main Data Entry'!$D$14))*(-1)*'Main Data Entry'!$G$15,IF($C98<(60-'Main Data Entry'!$D$14),(($C98-60+'Main Data Entry'!$D$14)/(60*'Main Data Entry'!$D$13-'Main Data Entry'!$D$14))*(-1)*'Main Data Entry'!$G$15,0)) -> 0.8345645568 | AB98: 42759.15969 | AC98: 59.97700119 | AD98: 143.0892792 | AE98: 59.97700119 | AF98: 143.0892792
A99: T-22s | B99: 42759.1597 | C99: 59.97900009 | D99: 143.0892792 | P99: ='Main Data Entry'!$G$15 -> 415 | Q99: =IF($C99>(60+'Main Data Entry'!$D$14),(($C99-60-'Main Data Entry'!$D$14)/(60*'Main Data Entry'!$D$13-'Main Data Entry'!$D$14))*(-1)*'Main Data Entry'!$G$15,IF($C99<(60-'Main Data Entry'!$D$14),(($C99-60+'Main Data Entry'!$D$14)/(60*'Main Data Entry'!$D$13-'Main Data Entry'!$D$14))*(-1)*'Main Data Entry'!$G$15,0)) -> 0.5564740213 | AB99: 42759.1597 | AC99: 59.97900009 | AD99: 143.0892792 | AE99: 59.97900009 | AF99: 143.0892792
A100: T-21s | B100: 42759.15971 | C100: 59.97900009 | D100: 144.2553253 | P100: ='Main Data Entry'!$G$15 -> 415 | Q100: =IF($C100>(60+'Main Data Entry'!$D$14),(($C100-60-'Main Data Entry'!$D$14)/(60*'Main Data Entry'!$D$13-'Main Data Entry'!$D$14))*(-1)*'Main Data Entry'!$G$15,IF($C100<(60-'Main Data Entry'!$D$14),(($C100-60+'Main Data Entry'!$D$14)/(60*'Main Data Entry'!$D$13-'Main Data Entry'!$D$14))*(-1)*'Main Data Entry'!$G$15,0)) -> 0.5564740213 | AB100: 42759.15971 | AC100: 59.97900009 | AD100: 144.2553253 | AE100: 59.97900009 | AF100: 144.2553253
A101: T-20s | B101: 42759.15972 | C101: 59.97999954 | D101: 144.2553253 | P101: ='Main Data Entry'!$G$15 -> 415 | Q101: =IF($C101>(60+'Main Data Entry'!$D$14),(($C101-60-'Main Data Entry'!$D$14)/(60*'Main Data Entry'!$D$13-'Main Data Entry'!$D$14))*(-1)*'Main Data Entry'!$G$15,IF($C101<(60-'Main Data Entry'!$D$14),(($C101-60+'Main Data Entry'!$D$14)/(60*'Main Data Entry'!$D$13-'Main Data Entry'!$D$14))*(-1)*'Main Data Entry'!$G$15,0)) -> 0.4174287536 | AB101: 42759.15972 | AC101: 59.97999954 | AD101: 144.2553253 | AE101: 59.97999954 | AF101: 144.2553253
A102: T-19s | B102: 42759.15973 | C102: 59.97999954 | D102: 144.2120667 | P102: ='Main Data Entry'!$G$15 -> 415 | Q102: =IF($C102>(60+'Main Data Entry'!$D$14),(($C102-60-'Main Data Entry'!$D$14)/(60*'Main Data Entry'!$D$13-'Main Data Entry'!$D$14))*(-1)*'Main Data Entry'!$G$15,IF($C102<(60-'Main Data Entry'!$D$14),(($C102-60+'Main Data Entry'!$D$14)/(60*'Main Data Entry'!$D$13-'Main Data Entry'!$D$14))*(-1)*'Main Data Entry'!$G$15,0)) -> 0.4174287536 | AB102: 42759.15973 | AC102: 59.97999954 | AD102: 144.2120667 | AE102: 59.97999954 | AF102: 144.2120667
A103: T-18s | B103: 42759.15975 | C103: 59.97999954 | D103: 144.2120667 | P103: ='Main Data Entry'!$G$15 -> 415 | Q103: =IF($C103>(60+'Main Data Entry'!$D$14),(($C103-60-'Main Data Entry'!$D$14)/(60*'Main Data Entry'!$D$13-'Main Data Entry'!$D$14))*(-1)*'Main Data Entry'!$G$15,IF($C103<(60-'Main Data Entry'!$D$14),(($C103-60+'Main Data Entry'!$D$14)/(60*'Main Data Entry'!$D$13-'Main Data Entry'!$D$14))*(-1)*'Main Data Entry'!$G$15,0)) -> 0.4174287536 | AB103: 42759.15975 | AC103: 59.97999954 | AD103: 144.2120667 | AE103: 59.97999954 | AF103: 144.2120667
A104: T-17s | B104: 42759.15976 | C104: 59.97900009 | D104: 145.1365204 | P104: ='Main Data Entry'!$G$15 -> 415 | Q104: =IF($C104>(60+'Main Data Entry'!$D$14),(($C104-60-'Main Data Entry'!$D$14)/(60*'Main Data Entry'!$D$13-'Main Data Entry'!$D$14))*(-1)*'Main Data Entry'!$G$15,IF($C104<(60-'Main Data Entry'!$D$14),(($C104-60+'Main Data Entry'!$D$14)/(60*'Main Data Entry'!$D$13-'Main Data Entry'!$D$14))*(-1)*'Main Data Entry'!$G$15,0)) -> 0.5564740213 | AB104: 42759.15976 | AC104: 59.97900009 | AD104: 145.1365204 | AE104: 59.97900009 | AF104: 145.1365204
A105: T-16s | B105: 42759.15977 | C105: 59.97800064 | D105: 145.1365204 | E105: =AVERAGE($C$105:$C$119) -> 59.97806727 | F105: =AVERAGE($D$105:$D$119) -> 146.2024465 | H105: =E105 -> 59.97806727 | J105: =F105 -> 146.2024465 | P105: ='Main Data Entry'!$G$15 -> 415 | Q105: =IF($C105>(60+'Main Data Entry'!$D$14),(($C105-60-'Main Data Entry'!$D$14)/(60*'Main Data Entry'!$D$13-'Main Data Entry'!$D$14))*(-1)*'Main Data Entry'!$G$15,IF($C105<(60-'Main Data Entry'!$D$14),(($C105-60+'Main Data Entry'!$D$14)/(60*'Main Data Entry'!$D$13-'Main Data Entry'!$D$14))*(-1)*'Main Data Entry'!$G$15,0)) -> 0.6955192891 | R105: =AVERAGE($Q$105:$Q$119) -> 0.6862496046 | AB105: 42759.15977 | AC105: 59.97800064 | AD105: 145.1365204 | AE105: 59.97800064 | AF105: 145.1365204
A106: T-15s | B106: 42759.15978 | C106: 59.97700119 | D106: 145.1023102 | E106: 59.97806727 | F106: 146.2024465 | H106: 59.97806727 | J106: 146.2024465 | P106: ='Main Data Entry'!$G$15 -> 415 | Q106: =IF($C106>(60+'Main Data Entry'!$D$14),(($C106-60-'Main Data Entry'!$D$14)/(60*'Main Data Entry'!$D$13-'Main Data Entry'!$D$14))*(-1)*'Main Data Entry'!$G$15,IF($C106<(60-'Main Data Entry'!$D$14),(($C106-60+'Main Data Entry'!$D$14)/(60*'Main Data Entry'!$D$13-'Main Data Entry'!$D$14))*(-1)*'Main Data Entry'!$G$15,0)) -> 0.8345645568 | R106: 0.6862496046 | AB106: 42759.15978 | AC106: 59.97700119 | AD106: 145.1023102 | AE106: 59.97700119 | AF106: 145.1023102
A107: T-14s | B107: 42759.15979 | C107: 59.97700119 | D107: 145.1023102 | E107: 59.97806727 | F107: 146.2024465 | H107: 59.97806727 | J107: 146.2024465 | P107: ='Main Data Entry'!$G$15 -> 415 | Q107: =IF($C107>(60+'Main Data Entry'!$D$14),(($C107-60-'Main Data Entry'!$D$14)/(60*'Main Data Entry'!$D$13-'Main Data Entry'!$D$14))*(-1)*'Main Data Entry'!$G$15,IF($C107<(60-'Main Data Entry'!$D$14),(($C107-60+'Main Data Entry'!$D$14)/(60*'Main Data Entry'!$D$13-'Main Data Entry'!$D$14))*(-1)*'Main Data Entry'!$G$15,0)) -> 0.8345645568 | R107: 0.6862496046 | AB107: 42759.15979 | AC107: 59.97700119 | AD107: 145.1023102 | AE107: 59.97700119 | AF107: 145.1023102
A108: T-13s | B108: 42759.1598 | C108: 59.97700119 | D108: 146.5391235 | E108: 59.97806727 | F108: 146.2024465 | H108: 59.97806727 | J108: 146.2024465 | P108: ='Main Data Entry'!$G$15 -> 415 | Q108: =IF($C108>(60+'Main Data Entry'!$D$14),(($C108-60-'Main Data Entry'!$D$14)/(60*'Main Data Entry'!$D$13-'Main Data Entry'!$D$14))*(-1)*'Main Data Entry'!$G$15,IF($C108<(60-'Main Data Entry'!$D$14),(($C108-60+'Main Data Entry'!$D$14)/(60*'Main Data Entry'!$D$13-'Main Data Entry'!$D$14))*(-1)*'Main Data Entry'!$G$15,0)) -> 0.8345645568 | R108: 0.6862496046 | AB108: 42759.1598 | AC108: 59.97700119 | AD108: 146.5391235 | AE108: 59.97700119 | AF108: 146.5391235
A109: T-12s | B109: 42759.15981 | C109: 59.97700119 | D109: 146.5391235 | E109: 59.97806727 | F109: 146.2024465 | H109: 59.97806727 | J109: 146.2024465 | P109: ='Main Data Entry'!$G$15 -> 415 | Q109: =IF($C109>(60+'Main Data Entry'!$D$14),(($C109-60-'Main Data Entry'!$D$14)/(60*'Main Data Entry'!$D$13-'Main Data Entry'!$D$14))*(-1)*'Main Data Entry'!$G$15,IF($C109<(60-'Main Data Entry'!$D$14),(($C109-60+'Main Data Entry'!$D$14)/(60*'Main Data Entry'!$D$13-'Main Data Entry'!$D$14))*(-1)*'Main Data Entry'!$G$15,0)) -> 0.8345645568 | R109: 0.6862496046 | AB109: 42759.15981 | AC109: 59.97700119 | AD109: 146.5391235 | AE109: 59.97700119 | AF109: 146.5391235
A110: T-11s | B110: 42759.15983 | C110: 59.97800064 | D110: 146.4859619 | E110: 59.97806727 | F110: 146.2024465 | H110: 59.97806727 | J110: 146.2024465 | P110: ='Main Data Entry'!$G$15 -> 415 | Q110: =IF($C110>(60+'Main Data Entry'!$D$14),(($C110-60-'Main Data Entry'!$D$14)/(60*'Main Data Entry'!$D$13-'Main Data Entry'!$D$14))*(-1)*'Main Data Entry'!$G$15,IF($C110<(60-'Main Data Entry'!$D$14),(($C110-60+'Main Data Entry'!$D$14)/(60*'Main Data Entry'!$D$13-'Main Data Entry'!$D$14))*(-1)*'Main Data Entry'!$G$15,0)) -> 0.6955192891 | R110: 0.6862496046 | AB110: 42759.15983 | AC110: 59.97800064 | AD110: 146.4859619 | AE110: 59.97800064 | AF110: 146.4859619
A111: T-10s | B111: 42759.15984 | C111: 59.97800064 | D111: 146.4859619 | E111: 59.97806727 | F111: 146.2024465 | H111: 59.97806727 | J111: 146.2024465 | P111: ='Main Data Entry'!$G$15 -> 415 | Q111: =IF($C111>(60+'Main Data Entry'!$D$14),(($C111-60-'Main Data Entry'!$D$14)/(60*'Main Data Entry'!$D$13-'Main Data Entry'!$D$14))*(-1)*'Main Data Entry'!$G$15,IF($C111<(60-'Main Data Entry'!$D$14),(($C111-60+'Main Data Entry'!$D$14)/(60*'Main Data Entry'!$D$13-'Main Data Entry'!$D$14))*(-1)*'Main Data Entry'!$G$15,0)) -> 0.6955192891 | R111: 0.6862496046 | AB111: 42759.15984 | AC111: 59.97800064 | AD111: 146.4859619 | AE111: 59.97800064 | AF111: 146.4859619
A112: T-9s | B112: 42759.15985 | C112: 59.97700119 | D112: 146.5699615 | E112: 59.97806727 | F112: 146.2024465 | H112: 59.97806727 | J112: 146.2024465 | P112: ='Main Data Entry'!$G$15 -> 415 | Q112: =IF($C112>(60+'Main Data Entry'!$D$14),(($C112-60-'Main Data Entry'!$D$14)/(60*'Main Data Entry'!$D$13-'Main Data Entry'!$D$14))*(-1)*'Main Data Entry'!$G$15,IF($C112<(60-'Main Data Entry'!$D$14),(($C112-60+'Main Data Entry'!$D$14)/(60*'Main Data Entry'!$D$13-'Main Data Entry'!$D$14))*(-1)*'Main Data Entry'!$G$15,0)) -> 0.8345645568 | R112: 0.6862496046 | AB112: 42759.15985 | AC112: 59.97700119 | AD112: 146.5699615 | AE112: 59.97700119 | AF112: 146.5699615
A113: T-8s | B113: 42759.15986 | C113: =OFFSET($AE113,-$B$1,0) -> 59.97700119 | D113: =OFFSET($AF113,-$B$1,0) -> 146.5699615 | E113: 59.97806727 | F113: 146.2024465 | H113: 59.97806727 | J113: 146.2024465 | P113: ='Main Data Entry'!$G$15 -> 415 | Q113: =IF($C113>(60+'Main Data Entry'!$D$14),(($C113-60-'Main Data Entry'!$D$14)/(60*'Main Data Entry'!$D$13-'Main Data Entry'!$D$14))*(-1)*'Main Data Entry'!$G$15,IF($C113<(60-'Main Data Entry'!$D$14),(($C113-60+'Main Data Entry'!$D$14)/(60*'Main Data Entry'!$D$13-'Main Data Entry'!$D$14))*(-1)*'Main Data Entry'!$G$15,0)) -> 0.8345645568 | R113: 0.6862496046 | AB113: =AB114-TIME(0,0,1) -> 42759.15986 | AC113: 59.97700119 | AD113: 146.5699615 | AE113: 59.97700119 | AF113: 146.5699615
A114: T-7s | B114: =B115-TIME(0,0,1) -> 42759.15987 | C114: 59.97700119 | D114: 146.5699615 | E114: 59.97806727 | F114: 146.2024465 | H114: 59.97806727 | J114: 146.2024465 | P114: ='Main Data Entry'!$G$15 -> 415 | Q114: =IF($C114>(60+'Main Data Entry'!$D$14),(($C114-60-'Main Data Entry'!$D$14)/(60*'Main Data Entry'!$D$13-'Main Data Entry'!$D$14))*(-1)*'Main Data Entry'!$G$15,IF($C114<(60-'Main Data Entry'!$D$14),(($C114-60+'Main Data Entry'!$D$14)/(60*'Main Data Entry'!$D$13-'Main Data Entry'!$D$14))*(-1)*'Main Data Entry'!$G$15,0)) -> 0.8345645568 | R114: 0.6862496046 | AB114: 42759.15987 | AC114: 59.97700119 | AD114: 146.5699615 | AE114: 59.97700119 | AF114: 146.5699615
A115: T-6s | B115: 42759.15988 | C115: 59.97900009 | D115: 146.5699615 | E115: 59.97806727 | F115: 146.2024465 | H115: 59.97806727 | J115: 146.2024465 | P115: ='Main Data Entry'!$G$15 -> 415 | Q115: =IF($C115>(60+'Main Data Entry'!$D$14),(($C115-60-'Main Data Entry'!$D$14)/(60*'Main Data Entry'!$D$13-'Main Data Entry'!$D$14))*(-1)*'Main Data Entry'!$G$15,IF($C115<(60-'Main Data Entry'!$D$14),(($C115-60+'Main Data Entry'!$D$14)/(60*'Main Data Entry'!$D$13-'Main Data Entry'!$D$14))*(-1)*'Main Data Entry'!$G$15,0)) -> 0.5564740213 | R115: 0.6862496046 | AB115: 42759.15988 | AC115: 59.97900009 | AD115: 146.5699615 | AE115: 59.97900009 | AF115: 146.5699615
A116: T-5s | B116: 42759.1599 | C116: 59.97900009 | D116: 146.3413849 | E116: 59.97806727 | F116: 146.2024465 | H116: 59.97806727 | J116: 146.2024465 | P116: ='Main Data Entry'!$G$15 -> 415 | Q116: =IF($C116>(60+'Main Data Entry'!$D$14),(($C116-60-'Main Data Entry'!$D$14)/(60*'Main Data Entry'!$D$13-'Main Data Entry'!$D$14))*(-1)*'Main Data Entry'!$G$15,IF($C116<(60-'Main Data Entry'!$D$14),(($C116-60+'Main Data Entry'!$D$14)/(60*'Main Data Entry'!$D$13-'Main Data Entry'!$D$14))*(-1)*'Main Data Entry'!$G$15,0)) -> 0.5564740213 | R116: 0.6862496046 | AB116: 42759.1599 | AC116: 59.97900009 | AD116: 146.3413849 | AE116: 59.97900009 | AF116: 146.3413849
A117: T-4s | B117: 42759.15991 | C117: 59.97999954 | D117: 146.3413849 | E117: 59.97806727 | F117: 146.2024465 | H117: 59.97806727 | J117: 146.2024465 | P117: ='Main Data Entry'!$G$15 -> 415 | Q117: =IF($C117>(60+'Main Data Entry'!$D$14),(($C117-60-'Main Data Entry'!$D$14)/(60*'Main Data Entry'!$D$13-'Main Data Entry'!$D$14))*(-1)*'Main Data Entry'!$G$15,IF($C117<(60-'Main Data Entry'!$D$14),(($C117-60+'Main Data Entry'!$D$14)/(60*'Main Data Entry'!$D$13-'Main Data Entry'!$D$14))*(-1)*'Main Data Entry'!$G$15,0)) -> 0.4174287536 | R117: 0.6862496046 | AB117: 42759.15991 | AC117: 59.97999954 | AD117: 146.3413849 | AE117: 59.97999954 | AF117: 146.3413849
A118: T-3s | B118: 42759.15992 | C118: 59.97900009 | D118: 146.3413849 | E118: 59.97806727 | F118: 146.2024465 | H118: 59.97806727 | J118: 146.2024465 | P118: ='Main Data Entry'!$G$15 -> 415 | Q118: =IF($C118>(60+'Main Data Entry'!$D$14),(($C118-60-'Main Data Entry'!$D$14)/(60*'Main Data Entry'!$D$13-'Main Data Entry'!$D$14))*(-1)*'Main Data Entry'!$G$15,IF($C118<(60-'Main Data Entry'!$D$14),(($C118-60+'Main Data Entry'!$D$14)/(60*'Main Data Entry'!$D$13-'Main Data Entry'!$D$14))*(-1)*'Main Data Entry'!$G$15,0)) -> 0.5564740213 | R118: 0.6862496046 | AB118: 42759.15992 | AC118: 59.97900009 | AD118: 146.3413849 | AE118: 59.97900009 | AF118: 146.3413849
A119: T-2s | B119: 42759.15993 | C119: 59.98099899 | D119: 146.3413849 | E119: 59.97806727 | F119: 146.2024465 | H119: 59.97806727 | J119: 146.2024465 | P119: ='Main Data Entry'!$G$15 -> 415 | Q119: =IF($C119>(60+'Main Data Entry'!$D$14),(($C119-60-'Main Data Entry'!$D$14)/(60*'Main Data Entry'!$D$13-'Main Data Entry'!$D$14))*(-1)*'Main Data Entry'!$G$15,IF($C119<(60-'Main Data Entry'!$D$14),(($C119-60+'Main Data Entry'!$D$14)/(60*'Main Data Entry'!$D$13-'Main Data Entry'!$D$14))*(-1)*'Main Data Entry'!$G$15,0)) -> 0.2783834858 | R119: 0.6862496046 | AB119: 42759.15993 | AC119: 59.98099899 | AD119: 146.3413849 | AE119: 59.98099899 | AF119: 146.3413849
A120: T-1s | B120: 42759.15994 | C120: 59.98099899 | D120: 146.4519501 | G120: -1000000000 | P120: ='Main Data Entry'!$G$15 -> 415 | Q120: =IF($C120>(60+'Main Data Entry'!$D$14),(($C120-60-'Main Data Entry'!$D$14)/(60*'Main Data Entry'!$D$13-'Main Data Entry'!$D$14))*(-1)*'Main Data Entry'!$G$15,IF($C120<(60-'Main Data Entry'!$D$14),(($C120-60+'Main Data Entry'!$D$14)/(60*'Main Data Entry'!$D$13-'Main Data Entry'!$D$14))*(-1)*'Main Data Entry'!$G$15,0)) -> 0.2783834858 | AB120: 42759.15994 | AC120: 59.98099899 | AD120: 146.4519501 | AE120: 59.98099899 | AF120: 146.4519501
A121: T=0 | B121: =$P$2+IF($B$1>0,-TIME(0,0,ABS($B$1)),+TIME(0,0,ABS($B$1))) -> 42759.15995 | C121: 59.98500061 | D121: 146.4519501 | G121: 60 | P121: ='Main Data Entry'!$G$15 -> 415 | Q121: =IF($C121>(60+'Main Data Entry'!$D$14),(($C121-60-'Main Data Entry'!$D$14)/(60*'Main Data Entry'!$D$13-'Main Data Entry'!$D$14))*(-1)*'Main Data Entry'!$G$15,IF($C121<(60-'Main Data Entry'!$D$14),(($C121-60+'Main Data Entry'!$D$14)/(60*'Main Data Entry'!$D$13-'Main Data Entry'!$D$14))*(-1)*'Main Data Entry'!$G$15,0)) -> 0 | AB121: =$P$2 -> 42759.15995 | AC121: 59.98500061 | AD121: 146.4519501 | AE121: 59.98500061 | AF121: 146.4519501
A122: T+1s | B122: =B121+TIME(0,0,1) -> 42759.15997 | C122: 59.98500061 | D122: 146.4519501 | G122: 1000000000 | P122: ='Main Data Entry'!$G$15 -> 415 | Q122: =IF($C122>(60+'Main Data Entry'!$D$14),(($C122-60-'Main Data Entry'!$D$14)/(60*'Main Data Entry'!$D$13-'Main Data Entry'!$D$14))*(-1)*'Main Data Entry'!$G$15,IF($C122<(60-'Main Data Entry'!$D$14),(($C122-60+'Main Data Entry'!$D$14)/(60*'Main Data Entry'!$D$13-'Main Data Entry'!$D$14))*(-1)*'Main Data Entry'!$G$15,0)) -> 0 | AB122: =AB121+TIME(0,0,1) -> 42759.15997 | AC122: 59.98500061 | AD122: 146.4519501 | AE122: 59.98500061 | AF122: 146.4519501
A123: T+2s | B123: =B122+TIME(0,0,1) -> 42759.15998 | C123: 59.94100189 | D123: 146.4519501 | P123: ='Main Data Entry'!$G$15 -> 415 | Q123: =IF($C123>(60+'Main Data Entry'!$D$14),(($C123-60-'Main Data Entry'!$D$14)/(60*'Main Data Entry'!$D$13-'Main Data Entry'!$D$14))*(-1)*'Main Data Entry'!$G$15,IF($C123<(60-'Main Data Entry'!$D$14),(($C123-60+'Main Data Entry'!$D$14)/(60*'Main Data Entry'!$D$13-'Main Data Entry'!$D$14))*(-1)*'Main Data Entry'!$G$15,0)) -> 5.842847731 | AB123: 42759.15998 | AC123: 59.94100189 | AD123: 146.4519501 | AE123: 59.94100189 | AF123: 146.4519501
A124: T+3s | B124: 42759.15999 | C124: 59.86999893 | D124: 146.8994904 | P124: ='Main Data Entry'!$G$15 -> 415 | Q124: =IF($C124>(60+'Main Data Entry'!$D$14),(($C124-60-'Main Data Entry'!$D$14)/(60*'Main Data Entry'!$D$13-'Main Data Entry'!$D$14))*(-1)*'Main Data Entry'!$G$15,IF($C124<(60-'Main Data Entry'!$D$14),(($C124-60+'Main Data Entry'!$D$14)/(60*'Main Data Entry'!$D$13-'Main Data Entry'!$D$14))*(-1)*'Main Data Entry'!$G$15,0)) -> 15.72089952 | AB124: 42759.15999 | AC124: 59.86999893 | AD124: 146.8994904 | AE124: 59.86999893 | AF124: 146.8994904
A125: T+4s | B125: 42759.16 | C125: 59.82400131 | D125: 146.8994904 | P125: ='Main Data Entry'!$G$15 -> 415 | Q125: =IF($C125>(60+'Main Data Entry'!$D$14),(($C125-60-'Main Data Entry'!$D$14)/(60*'Main Data Entry'!$D$13-'Main Data Entry'!$D$14))*(-1)*'Main Data Entry'!$G$15,IF($C125<(60-'Main Data Entry'!$D$14),(($C125-60+'Main Data Entry'!$D$14)/(60*'Main Data Entry'!$D$13-'Main Data Entry'!$D$14))*(-1)*'Main Data Entry'!$G$15,0)) -> 22.12016608 | AB125: 42759.16 | AC125: 59.82400131 | AD125: 146.8994904 | AE125: 59.82400131 | AF125: 146.8994904
A126: T+5s | B126: 42759.16001 | C126: 59.80899811 | D126: 146.882782 | P126: ='Main Data Entry'!$G$15 -> 415 | Q126: =IF($C126>(60+'Main Data Entry'!$D$14),(($C126-60-'Main Data Entry'!$D$14)/(60*'Main Data Entry'!$D$13-'Main Data Entry'!$D$14))*(-1)*'Main Data Entry'!$G$15,IF($C126<(60-'Main Data Entry'!$D$14),(($C126-60+'Main Data Entry'!$D$14)/(60*'Main Data Entry'!$D$13-'Main Data Entry'!$D$14))*(-1)*'Main Data Entry'!$G$15,0)) -> 24.20743722 | AB126: 42759.16001 | AC126: 59.80899811 | AD126: 146.882782 | AE126: 59.80899811 | AF126: 146.882782
A127: T+6s | B127: 42759.16002 | C127: 59.80899811 | D127: 146.882782 | P127: ='Main Data Entry'!$G$15 -> 415 | Q127: =IF($C127>(60+'Main Data Entry'!$D$14),(($C127-60-'Main Data Entry'!$D$14)/(60*'Main Data Entry'!$D$13-'Main Data Entry'!$D$14))*(-1)*'Main Data Entry'!$G$15,IF($C127<(60-'Main Data Entry'!$D$14),(($C127-60+'Main Data Entry'!$D$14)/(60*'Main Data Entry'!$D$13-'Main Data Entry'!$D$14))*(-1)*'Main Data Entry'!$G$15,0)) -> 24.20743722 | AB127: 42759.16002 | AC127: 59.80899811 | AD127: 146.882782 | AE127: 59.80899811 | AF127: 146.882782
A128: T+7s | B128: 42759.16003 | C128: 59.81000137 | D128: 147.601181 | P128: ='Main Data Entry'!$G$15 -> 415 | Q128: =IF($C128>(60+'Main Data Entry'!$D$14),(($C128-60-'Main Data Entry'!$D$14)/(60*'Main Data Entry'!$D$13-'Main Data Entry'!$D$14))*(-1)*'Main Data Entry'!$G$15,IF($C128<(60-'Main Data Entry'!$D$14),(($C128-60+'Main Data Entry'!$D$14)/(60*'Main Data Entry'!$D$13-'Main Data Entry'!$D$14))*(-1)*'Main Data Entry'!$G$15,0)) -> 24.06786124 | AB128: 42759.16003 | AC128: 59.81000137 | AD128: 147.601181 | AE128: 59.81000137 | AF128: 147.601181
A129: T+8s | B129: 42759.16005 | C129: 59.83800125 | D129: 147.601181 | P129: ='Main Data Entry'!$G$15 -> 415 | Q129: =IF($C129>(60+'Main Data Entry'!$D$14),(($C129-60-'Main Data Entry'!$D$14)/(60*'Main Data Entry'!$D$13-'Main Data Entry'!$D$14))*(-1)*'Main Data Entry'!$G$15,IF($C129<(60-'Main Data Entry'!$D$14),(($C129-60+'Main Data Entry'!$D$14)/(60*'Main Data Entry'!$D$13-'Main Data Entry'!$D$14))*(-1)*'Main Data Entry'!$G$15,0)) -> 20.17247092 | AB129: 42759.16005 | AC129: 59.83800125 | AD129: 147.601181 | AE129: 59.83800125 | AF129: 147.601181
A130: T+9s | B130: 42759.16006 | C130: 59.83800125 | D130: 147.5746002 | P130: ='Main Data Entry'!$G$15 -> 415 | Q130: =IF($C130>(60+'Main Data Entry'!$D$14),(($C130-60-'Main Data Entry'!$D$14)/(60*'Main Data Entry'!$D$13-'Main Data Entry'!$D$14))*(-1)*'Main Data Entry'!$G$15,IF($C130<(60-'Main Data Entry'!$D$14),(($C130-60+'Main Data Entry'!$D$14)/(60*'Main Data Entry'!$D$13-'Main Data Entry'!$D$14))*(-1)*'Main Data Entry'!$G$15,0)) -> 20.17247092 | AB130: 42759.16006 | AC130: 59.83800125 | AD130: 147.5746002 | AE130: 59.83800125 | AF130: 147.5746002
A131: T+10s | B131: 42759.16007 | C131: 59.85599899 | D131: 147.5746002 | P131: ='Main Data Entry'!$G$15 -> 415 | Q131: =IF($C131>(60+'Main Data Entry'!$D$14),(($C131-60-'Main Data Entry'!$D$14)/(60*'Main Data Entry'!$D$13-'Main Data Entry'!$D$14))*(-1)*'Main Data Entry'!$G$15,IF($C131<(60-'Main Data Entry'!$D$14),(($C131-60+'Main Data Entry'!$D$14)/(60*'Main Data Entry'!$D$13-'Main Data Entry'!$D$14))*(-1)*'Main Data Entry'!$G$15,0)) -> 17.66859468 | AB131: 42759.16007 | AC131: 59.85599899 | AD131: 147.5746002 | AE131: 59.85599899 | AF131: 147.5746002
A132: T+11s | B132: 42759.16008 | C132: 59.8730011 | D132: 153.1537018 | P132: ='Main Data Entry'!$G$15 -> 415 | Q132: =IF($C132>(60+'Main Data Entry'!$D$14),(($C132-60-'Main Data Entry'!$D$14)/(60*'Main Data Entry'!$D$13-'Main Data Entry'!$D$14))*(-1)*'Main Data Entry'!$G$15,IF($C132<(60-'Main Data Entry'!$D$14),(($C132-60+'Main Data Entry'!$D$14)/(60*'Main Data Entry'!$D$13-'Main Data Entry'!$D$14))*(-1)*'Main Data Entry'!$G$15,0)) -> 15.30323301 | AB132: 42759.16008 | AC132: 59.8730011 | AD132: 153.1537018 | AE132: 59.8730011 | AF132: 153.1537018
A133: T+12s | B133: 42759.16009 | C133: 59.89899826 | D133: 153.1537018 | P133: ='Main Data Entry'!$G$15 -> 415 | Q133: =IF($C133>(60+'Main Data Entry'!$D$14),(($C133-60-'Main Data Entry'!$D$14)/(60*'Main Data Entry'!$D$13-'Main Data Entry'!$D$14))*(-1)*'Main Data Entry'!$G$15,IF($C133<(60-'Main Data Entry'!$D$14),(($C133-60+'Main Data Entry'!$D$14)/(60*'Main Data Entry'!$D$13-'Main Data Entry'!$D$14))*(-1)*'Main Data Entry'!$G$15,0)) -> 11.68646393 | AB133: 42759.16009 | AC133: 59.89899826 | AD133: 153.1537018 | AE133: 59.89899826 | AF133: 153.1537018
A134: T+13s | B134: 42759.1601 | C134: 59.89899826 | D134: 152.9472809 | P134: ='Main Data Entry'!$G$15 -> 415 | Q134: =IF($C134>(60+'Main Data Entry'!$D$14),(($C134-60-'Main Data Entry'!$D$14)/(60*'Main Data Entry'!$D$13-'Main Data Entry'!$D$14))*(-1)*'Main Data Entry'!$G$15,IF($C134<(60-'Main Data Entry'!$D$14),(($C134-60+'Main Data Entry'!$D$14)/(60*'Main Data Entry'!$D$13-'Main Data Entry'!$D$14))*(-1)*'Main Data Entry'!$G$15,0)) -> 11.68646393 | AB134: 42759.1601 | AC134: 59.89899826 | AD134: 152.9472809 | AE134: 59.89899826 | AF134: 152.9472809
A135: T+14s | B135: 42759.16012 | C135: 59.91500092 | D135: 152.9472809 | P135: ='Main Data Entry'!$G$15 -> 415 | Q135: =IF($C135>(60+'Main Data Entry'!$D$14),(($C135-60-'Main Data Entry'!$D$14)/(60*'Main Data Entry'!$D$13-'Main Data Entry'!$D$14))*(-1)*'Main Data Entry'!$G$15,IF($C135<(60-'Main Data Entry'!$D$14),(($C135-60+'Main Data Entry'!$D$14)/(60*'Main Data Entry'!$D$13-'Main Data Entry'!$D$14))*(-1)*'Main Data Entry'!$G$15,0)) -> 9.460147521 | AB135: 42759.16012 | AC135: 59.91500092 | AD135: 152.9472809 | AE135: 59.91500092 | AF135: 152.9472809
A136: T+15s | B136: 42759.16013 | C136: 59.91699982 | D136: 152.6678009 | P136: ='Main Data Entry'!$G$15 -> 415 | Q136: =IF($C136>(60+'Main Data Entry'!$D$14),(($C136-60-'Main Data Entry'!$D$14)/(60*'Main Data Entry'!$D$13-'Main Data Entry'!$D$14))*(-1)*'Main Data Entry'!$G$15,IF($C136<(60-'Main Data Entry'!$D$14),(($C136-60+'Main Data Entry'!$D$14)/(60*'Main Data Entry'!$D$13-'Main Data Entry'!$D$14))*(-1)*'Main Data Entry'!$G$15,0)) -> 9.182056986 | AB136: 42759.16013 | AC136: 59.91699982 | AD136: 152.6678009 | AE136: 59.91699982 | AF136: 152.6678009
A137: T+16s | B137: 42759.16014 | C137: 59.91600037 | D137: 152.6678009 | P137: ='Main Data Entry'!$G$15 -> 415 | Q137: =IF($C137>(60+'Main Data Entry'!$D$14),(($C137-60-'Main Data Entry'!$D$14)/(60*'Main Data Entry'!$D$13-'Main Data Entry'!$D$14))*(-1)*'Main Data Entry'!$G$15,IF($C137<(60-'Main Data Entry'!$D$14),(($C137-60+'Main Data Entry'!$D$14)/(60*'Main Data Entry'!$D$13-'Main Data Entry'!$D$14))*(-1)*'Main Data Entry'!$G$15,0)) -> 9.321102254 | AB137: 42759.16014 | AC137: 59.91600037 | AD137: 152.6678009 | AE137: 59.91600037 | AF137: 152.6678009
A138: T+17s | B138: 42759.16015 | C138: 59.91600037 | D138: 152.6781464 | P138: ='Main Data Entry'!$G$15 -> 415 | Q138: =IF($C138>(60+'Main Data Entry'!$D$14),(($C138-60-'Main Data Entry'!$D$14)/(60*'Main Data Entry'!$D$13-'Main Data Entry'!$D$14))*(-1)*'Main Data Entry'!$G$15,IF($C138<(60-'Main Data Entry'!$D$14),(($C138-60+'Main Data Entry'!$D$14)/(60*'Main Data Entry'!$D$13-'Main Data Entry'!$D$14))*(-1)*'Main Data Entry'!$G$15,0)) -> 9.321102254 | AB138: =AB137+TIME(0,0,1) -> 42759.16015 | AC138: 59.91600037 | AD138: 152.6781464 | AE138: 59.91600037 | AF138: 152.6781464
A139: T+18s | B139: 42759.16016 | C139: 59.91999817 | D139: 152.6781464 | P139: ='Main Data Entry'!$G$15 -> 415 | Q139: =IF($C139>(60+'Main Data Entry'!$D$14),(($C139-60-'Main Data Entry'!$D$14)/(60*'Main Data Entry'!$D$13-'Main Data Entry'!$D$14))*(-1)*'Main Data Entry'!$G$15,IF($C139<(60-'Main Data Entry'!$D$14),(($C139-60+'Main Data Entry'!$D$14)/(60*'Main Data Entry'!$D$13-'Main Data Entry'!$D$14))*(-1)*'Main Data Entry'!$G$15,0)) -> 8.764921183 | AB139: 42759.16016 | AC139: 59.91999817 | AD139: 152.6781464 | AE139: 59.91999817 | AF139: 152.6781464
A140: T+19s | B140: 42759.16017 | C140: 59.92900085 | D140: 156.9844055 | P140: ='Main Data Entry'!$G$15 -> 415 | Q140: =IF($C140>(60+'Main Data Entry'!$D$14),(($C140-60-'Main Data Entry'!$D$14)/(60*'Main Data Entry'!$D$13-'Main Data Entry'!$D$14))*(-1)*'Main Data Entry'!$G$15,IF($C140<(60-'Main Data Entry'!$D$14),(($C140-60+'Main Data Entry'!$D$14)/(60*'Main Data Entry'!$D$13-'Main Data Entry'!$D$14))*(-1)*'Main Data Entry'!$G$15,0)) -> 7.512452359 | AB140: 42759.16017 | AC140: 59.92900085 | AD140: 156.9844055 | AE140: =IF($AC140="",$AE139,IF($AC140<>$AE139,$AC140,$AE139)) -> 59.92900085 | AF140: =IF($AD140="",$AF139,IF($AD140<>$AF139,$AD140,$AF139)) -> 156.9844055
A141: T+20s | B141: 42759.16019 | C141: 59.93099976 | D141: 156.9844055 | E141: =AVERAGE($C$141:$C$173) -> 59.93942376 | F141: =AVERAGE($D$141:$D$173) -> 158.0875577 | I141: =E141 -> 59.93942376 | K141: =F141 -> 158.0875577 | L141: =P$12+P$17 -> 154.3157926 | M141: =P$12+P$21 -> 151.5785966 | P141: ='Main Data Entry'!$G$15 -> 415 | Q141: =IF($C141>(60+'Main Data Entry'!$D$14),(($C141-60-'Main Data Entry'!$D$14)/(60*'Main Data Entry'!$D$13-'Main Data Entry'!$D$14))*(-1)*'Main Data Entry'!$G$15,IF($C141<(60-'Main Data Entry'!$D$14),(($C141-60+'Main Data Entry'!$D$14)/(60*'Main Data Entry'!$D$13-'Main Data Entry'!$D$14))*(-1)*'Main Data Entry'!$G$15,0)) -> 7.234361823 | R141: =AVERAGE($Q$141:$Q$173) -> 6.062399662 | AB141: 42759.16019 | AC141: 59.93099976 | AD141: 156.9844055 | AE141: 59.93099976 | AF141: 156.9844055
A142: T+21s | B142: 42759.1602 | C142: 59.93099976 | D142: 156.8250732 | E142: 59.93942376 | F142: 158.0875577 | I142: 59.93942376 | K142: 158.0875577 | L142: =P$12+P$17 -> 154.3157926 | M142: =P$12+P$21 -> 151.5785966 | P142: ='Main Data Entry'!$G$15 -> 415 | Q142: =IF($C142>(60+'Main Data Entry'!$D$14),(($C142-60-'Main Data Entry'!$D$14)/(60*'Main Data Entry'!$D$13-'Main Data Entry'!$D$14))*(-1)*'Main Data Entry'!$G$15,IF($C142<(60-'Main Data Entry'!$D$14),(($C142-60+'Main Data Entry'!$D$14)/(60*'Main Data Entry'!$D$13-'Main Data Entry'!$D$14))*(-1)*'Main Data Entry'!$G$15,0)) -> 7.234361823 | R142: 6.062399662 | AB142: 42759.1602 | AC142: 59.93099976 | AD142: 156.8250732 | AE142: 59.93099976 | AF142: 156.8250732
A143: T+22s | B143: 42759.16021 | C143: 59.93299866 | D143: 156.8250732 | E143: 59.93942376 | F143: 158.0875577 | I143: 59.93942376 | K143: 158.0875577 | L143: 154.3157926 | M143: 151.5785966 | P143: ='Main Data Entry'!$G$15 -> 415 | Q143: =IF($C143>(60+'Main Data Entry'!$D$14),(($C143-60-'Main Data Entry'!$D$14)/(60*'Main Data Entry'!$D$13-'Main Data Entry'!$D$14))*(-1)*'Main Data Entry'!$G$15,IF($C143<(60-'Main Data Entry'!$D$14),(($C143-60+'Main Data Entry'!$D$14)/(60*'Main Data Entry'!$D$13-'Main Data Entry'!$D$14))*(-1)*'Main Data Entry'!$G$15,0)) -> 6.956271288 | R143: 6.062399662 | AB143: 42759.16021 | AC143: 59.93299866 | AD143: 156.8250732 | AE143: 59.93299866 | AF143: 156.8250732
A144: T+23s | B144: 42759.16022 | C144: 59.93399811 | D144: 160.3993225 | E144: 59.93942376 | F144: 158.0875577 | I144: 59.93942376 | K144: 158.0875577 | L144: 154.3157926 | M144: 151.5785966 | P144: ='Main Data Entry'!$G$15 -> 415 | Q144: =IF($C144>(60+'Main Data Entry'!$D$14),(($C144-60-'Main Data Entry'!$D$14)/(60*'Main Data Entry'!$D$13-'Main Data Entry'!$D$14))*(-1)*'Main Data Entry'!$G$15,IF($C144<(60-'Main Data Entry'!$D$14),(($C144-60+'Main Data Entry'!$D$14)/(60*'Main Data Entry'!$D$13-'Main Data Entry'!$D$14))*(-1)*'Main Data Entry'!$G$15,0)) -> 6.81722602 | R144: 6.062399662 | AB144: 42759.16022 | AC144: 59.93399811 | AD144: 160.3993225 | AE144: 59.93399811 | AF144: 160.3993225
A145: T+24s | B145: 42759.16023 | C145: =OFFSET($AE145,-$B$1,0) -> 59.93399811 | D145: =OFFSET($AF145,-$B$1,0) -> 160.3993225 | E145: 59.93942376 | F145: 158.0875577 | I145: 59.93942376 | K145: 158.0875577 | L145: 154.3157926 | M145: 151.5785966 | P145: ='Main Data Entry'!$G$15 -> 415 | Q145: =IF($C145>(60+'Main Data Entry'!$D$14),(($C145-60-'Main Data Entry'!$D$14)/(60*'Main Data Entry'!$D$13-'Main Data Entry'!$D$14))*(-1)*'Main Data Entry'!$G$15,IF($C145<(60-'Main Data Entry'!$D$14),(($C145-60+'Main Data Entry'!$D$14)/(60*'Main Data Entry'!$D$13-'Main Data Entry'!$D$14))*(-1)*'Main Data Entry'!$G$15,0)) -> 6.81722602 | R145: 6.062399662 | AB145: 42759.16023 | AC145: 59.93399811 | AD145: 160.3993225 | AE145: 59.93399811 | AF145: 160.3993225
A146: T+25s | B146: 42759.16024 | C146: 59.93500137 | D146: 160.2670746 | E146: 59.93942376 | F146: 158.0875577 | I146: 59.93942376 | K146: 158.0875577 | L146: 154.3157926 | M146: 151.5785966 | P146: ='Main Data Entry'!$G$15 -> 415 | Q146: =IF($C146>(60+'Main Data Entry'!$D$14),(($C146-60-'Main Data Entry'!$D$14)/(60*'Main Data Entry'!$D$13-'Main Data Entry'!$D$14))*(-1)*'Main Data Entry'!$G$15,IF($C146<(60-'Main Data Entry'!$D$14),(($C146-60+'Main Data Entry'!$D$14)/(60*'Main Data Entry'!$D$13-'Main Data Entry'!$D$14))*(-1)*'Main Data Entry'!$G$15,0)) -> 6.677650045 | R146: 6.062399662 | AB146: 42759.16024 | AC146: 59.93500137 | AD146: 160.2670746 | AE146: 59.93500137 | AF146: 160.2670746
A147: T+26s | B147: 42759.16025 | C147: 59.93700027 | D147: 160.2670746 | E147: 59.93942376 | F147: 158.0875577 | I147: 59.93942376 | K147: 158.0875577 | L147: 154.3157926 | M147: 151.5785966 | P147: ='Main Data Entry'!$G$15 -> 415 | Q147: =IF($C147>(60+'Main Data Entry'!$D$14),(($C147-60-'Main Data Entry'!$D$14)/(60*'Main Data Entry'!$D$13-'Main Data Entry'!$D$14))*(-1)*'Main Data Entry'!$G$15,IF($C147<(60-'Main Data Entry'!$D$14),(($C147-60+'Main Data Entry'!$D$14)/(60*'Main Data Entry'!$D$13-'Main Data Entry'!$D$14))*(-1)*'Main Data Entry'!$G$15,0)) -> 6.39955951 | R147: 6.062399662 | AB147: 42759.16025 | AC147: 59.93700027 | AD147: 160.2670746 | AE147: 59.93700027 | AF147: 160.2670746
A148: T+27s | B148: 42759.16027 | C148: 59.93700027 | D148: 159.9848633 | E148: 59.93942376 | F148: 158.0875577 | I148: 59.93942376 | K148: 158.0875577 | L148: 154.3157926 | M148: 151.5785966 | P148: ='Main Data Entry'!$G$15 -> 415 | Q148: =IF($C148>(60+'Main Data Entry'!$D$14),(($C148-60-'Main Data Entry'!$D$14)/(60*'Main Data Entry'!$D$13-'Main Data Entry'!$D$14))*(-1)*'Main Data Entry'!$G$15,IF($C148<(60-'Main Data Entry'!$D$14),(($C148-60+'Main Data Entry'!$D$14)/(60*'Main Data Entry'!$D$13-'Main Data Entry'!$D$14))*(-1)*'Main Data Entry'!$G$15,0)) -> 6.39955951 | R148: 6.062399662 | AB148: 42759.16027 | AC148: 59.93700027 | AD148: 159.9848633 | AE148: 59.93700027 | AF148: 159.9848633
A149: T+28s | B149: 42759.16028 | C149: 59.93999863 | D149: 159.9848633 | E149: 59.93942376 | F149: 158.0875577 | I149: 59.93942376 | K149: 158.0875577 | L149: 154.3157926 | M149: 151.5785966 | P149: ='Main Data Entry'!$G$15 -> 415 | Q149: =IF($C149>(60+'Main Data Entry'!$D$14),(($C149-60-'Main Data Entry'!$D$14)/(60*'Main Data Entry'!$D$13-'Main Data Entry'!$D$14))*(-1)*'Main Data Entry'!$G$15,IF($C149<(60-'Main Data Entry'!$D$14),(($C149-60+'Main Data Entry'!$D$14)/(60*'Main Data Entry'!$D$13-'Main Data Entry'!$D$14))*(-1)*'Main Data Entry'!$G$15,0)) -> 5.982423706 | R149: 6.062399662 | AB149: 42759.16028 | AC149: 59.93999863 | AD149: 159.9848633 | AE149: 59.93999863 | AF149: 159.9848633
A150: T+29s | B150: 42759.16029 | C150: 59.93999863 | D150: 159.9953003 | E150: 59.93942376 | F150: 158.0875577 | I150: 59.93942376 | K150: 158.0875577 | L150: 154.3157926 | M150: 151.5785966 | P150: ='Main Data Entry'!$G$15 -> 415 | Q150: =IF($C150>(60+'Main Data Entry'!$D$14),(($C150-60-'Main Data Entry'!$D$14)/(60*'Main Data Entry'!$D$13-'Main Data Entry'!$D$14))*(-1)*'Main Data Entry'!$G$15,IF($C150<(60-'Main Data Entry'!$D$14),(($C150-60+'Main Data Entry'!$D$14)/(60*'Main Data Entry'!$D$13-'Main Data Entry'!$D$14))*(-1)*'Main Data Entry'!$G$15,0)) -> 5.982423706 | R150: 6.062399662 | AB150: 42759.16029 | AC150: 59.93999863 | AD150: 159.9953003 | AE150: 59.93999863 | AF150: 159.9953003
A151: T+30s | B151: 42759.1603 | C151: 59.93899918 | D151: 159.9953003 | E151: 59.93942376 | F151: 158.0875577 | I151: 59.93942376 | K151: 158.0875577 | L151: 154.3157926 | M151: 151.5785966 | P151: ='Main Data Entry'!$G$15 -> 415 | Q151: =IF($C151>(60+'Main Data Entry'!$D$14),(($C151-60-'Main Data Entry'!$D$14)/(60*'Main Data Entry'!$D$13-'Main Data Entry'!$D$14))*(-1)*'Main Data Entry'!$G$15,IF($C151<(60-'Main Data Entry'!$D$14),(($C151-60+'Main Data Entry'!$D$14)/(60*'Main Data Entry'!$D$13-'Main Data Entry'!$D$14))*(-1)*'Main Data Entry'!$G$15,0)) -> 6.121468974 | R151: 6.062399662 | AB151: 42759.1603 | AC151: 59.93899918 | AD151: 159.9953003 | AE151: 59.93899918 | AF151: 159.9953003
A152: T+31s | B152: 42759.16031 | C152: 59.93700027 | D152: 158.8464813 | E152: 59.93942376 | F152: 158.0875577 | I152: 59.93942376 | K152: 158.0875577 | L152: 154.3157926 | M152: 151.5785966 | P152: ='Main Data Entry'!$G$15 -> 415 | Q152: =IF($C152>(60+'Main Data Entry'!$D$14),(($C152-60-'Main Data Entry'!$D$14)/(60*'Main Data Entry'!$D$13-'Main Data Entry'!$D$14))*(-1)*'Main Data Entry'!$G$15,IF($C152<(60-'Main Data Entry'!$D$14),(($C152-60+'Main Data Entry'!$D$14)/(60*'Main Data Entry'!$D$13-'Main Data Entry'!$D$14))*(-1)*'Main Data Entry'!$G$15,0)) -> 6.39955951 | R152: 6.062399662 | AB152: 42759.16031 | AC152: 59.93700027 | AD152: 158.8464813 | AE152: 59.93700027 | AF152: 158.8464813
A153: T+32s | B153: 42759.16032 | C153: 59.93700027 | D153: 158.8464813 | E153: 59.93942376 | F153: 158.0875577 | I153: 59.93942376 | K153: 158.0875577 | L153: 154.3157926 | M153: 151.5785966 | P153: ='Main Data Entry'!$G$15 -> 415 | Q153: =IF($C153>(60+'Main Data Entry'!$D$14),(($C153-60-'Main Data Entry'!$D$14)/(60*'Main Data Entry'!$D$13-'Main Data Entry'!$D$14))*(-1)*'Main Data Entry'!$G$15,IF($C153<(60-'Main Data Entry'!$D$14),(($C153-60+'Main Data Entry'!$D$14)/(60*'Main Data Entry'!$D$13-'Main Data Entry'!$D$14))*(-1)*'Main Data Entry'!$G$15,0)) -> 6.39955951 | R153: 6.062399662 | AB153: 42759.16032 | AC153: 59.93700027 | AD153: 158.8464813 | AE153: 59.93700027 | AF153: 158.8464813
A154: T+33s | B154: 42759.16034 | C154: 59.93700027 | D154: 158.8889923 | E154: 59.93942376 | F154: 158.0875577 | I154: 59.93942376 | K154: 158.0875577 | L154: 154.3157926 | M154: 151.5785966 | P154: ='Main Data Entry'!$G$15 -> 415 | Q154: =IF($C154>(60+'Main Data Entry'!$D$14),(($C154-60-'Main Data Entry'!$D$14)/(60*'Main Data Entry'!$D$13-'Main Data Entry'!$D$14))*(-1)*'Main Data Entry'!$G$15,IF($C154<(60-'Main Data Entry'!$D$14),(($C154-60+'Main Data Entry'!$D$14)/(60*'Main Data Entry'!$D$13-'Main Data Entry'!$D$14))*(-1)*'Main Data Entry'!$G$15,0)) -> 6.39955951 | R154: 6.062399662 | AB154: =AB153+TIME(0,0,1) -> 42759.16034 | AC154: 59.93700027 | AD154: 158.8889923 | AE154: 59.93700027 | AF154: 158.8889923
A155: T+34s | B155: 42759.16035 | C155: 59.93700027 | D155: 158.8889923 | E155: 59.93942376 | F155: 158.0875577 | I155: 59.93942376 | K155: 158.0875577 | L155: 154.3157926 | M155: 151.5785966 | P155: ='Main Data Entry'!$G$15 -> 415 | Q155: =IF($C155>(60+'Main Data Entry'!$D$14),(($C155-60-'Main Data Entry'!$D$14)/(60*'Main Data Entry'!$D$13-'Main Data Entry'!$D$14))*(-1)*'Main Data Entry'!$G$15,IF($C155<(60-'Main Data Entry'!$D$14),(($C155-60+'Main Data Entry'!$D$14)/(60*'Main Data Entry'!$D$13-'Main Data Entry'!$D$14))*(-1)*'Main Data Entry'!$G$15,0)) -> 6.39955951 | R155: 6.062399662 | AB155: 42759.16035 | AC155: 59.93700027 | AD155: 158.8889923 | AE155: 59.93700027 | AF155: 158.8889923
A156: T+35s | B156: 42759.16036 | C156: 59.93700027 | D156: 157.9030457 | E156: 59.93942376 | F156: 158.0875577 | I156: 59.93942376 | K156: 158.0875577 | L156: 154.3157926 | M156: 151.5785966 | P156: ='Main Data Entry'!$G$15 -> 415 | Q156: =IF($C156>(60+'Main Data Entry'!$D$14),(($C156-60-'Main Data Entry'!$D$14)/(60*'Main Data Entry'!$D$13-'Main Data Entry'!$D$14))*(-1)*'Main Data Entry'!$G$15,IF($C156<(60-'Main Data Entry'!$D$14),(($C156-60+'Main Data Entry'!$D$14)/(60*'Main Data Entry'!$D$13-'Main Data Entry'!$D$14))*(-1)*'Main Data Entry'!$G$15,0)) -> 6.39955951 | R156: 6.062399662 | AB156: 42759.16036 | AC156: 59.93700027 | AD156: 157.9030457 | AE156: 59.93700027 | AF156: 157.9030457
A157: T+36s | B157: 42759.16037 | C157: 59.93700027 | D157: 157.9030457 | E157: 59.93942376 | F157: 158.0875577 | I157: 59.93942376 | K157: 158.0875577 | L157: 154.3157926 | M157: 151.5785966 | P157: ='Main Data Entry'!$G$15 -> 415 | Q157: =IF($C157>(60+'Main Data Entry'!$D$14),(($C157-60-'Main Data Entry'!$D$14)/(60*'Main Data Entry'!$D$13-'Main Data Entry'!$D$14))*(-1)*'Main Data Entry'!$G$15,IF($C157<(60-'Main Data Entry'!$D$14),(($C157-60+'Main Data Entry'!$D$14)/(60*'Main Data Entry'!$D$13-'Main Data Entry'!$D$14))*(-1)*'Main Data Entry'!$G$15,0)) -> 6.39955951 | R157: 6.062399662 | AB157: 42759.16037 | AC157: 59.93700027 | AD157: 157.9030457 | AE157: 59.93700027 | AF157: 157.9030457
A158: T+37s | B158: 42759.16038 | C158: 59.93700027 | D158: 157.9395142 | E158: 59.93942376 | F158: 158.0875577 | I158: 59.93942376 | K158: 158.0875577 | L158: 154.3157926 | M158: 151.5785966 | P158: ='Main Data Entry'!$G$15 -> 415 | Q158: =IF($C158>(60+'Main Data Entry'!$D$14),(($C158-60-'Main Data Entry'!$D$14)/(60*'Main Data Entry'!$D$13-'Main Data Entry'!$D$14))*(-1)*'Main Data Entry'!$G$15,IF($C158<(60-'Main Data Entry'!$D$14),(($C158-60+'Main Data Entry'!$D$14)/(60*'Main Data Entry'!$D$13-'Main Data Entry'!$D$14))*(-1)*'Main Data Entry'!$G$15,0)) -> 6.39955951 | R158: 6.062399662 | AB158: 42759.16038 | AC158: 59.93700027 | AD158: 157.9395142 | AE158: 59.93700027 | AF158: 157.9395142
A159: T+38s | B159: 42759.16039 | C159: 59.93899918 | D159: 157.9395142 | E159: 59.93942376 | F159: 158.0875577 | I159: 59.93942376 | K159: 158.0875577 | L159: 154.3157926 | M159: 151.5785966 | P159: ='Main Data Entry'!$G$15 -> 415 | Q159: =IF($C159>(60+'Main Data Entry'!$D$14),(($C159-60-'Main Data Entry'!$D$14)/(60*'Main Data Entry'!$D$13-'Main Data Entry'!$D$14))*(-1)*'Main Data Entry'!$G$15,IF($C159<(60-'Main Data Entry'!$D$14),(($C159-60+'Main Data Entry'!$D$14)/(60*'Main Data Entry'!$D$13-'Main Data Entry'!$D$14))*(-1)*'Main Data Entry'!$G$15,0)) -> 6.121468974 | R159: 6.062399662 | AB159: 42759.16039 | AC159: 59.93899918 | AD159: 157.9395142 | AE159: 59.93899918 | AF159: 157.9395142
A160: T+39s | B160: 42759.16041 | C160: 59.93999863 | D160: 157.3434448 | E160: 59.93942376 | F160: 158.0875577 | I160: 59.93942376 | K160: 158.0875577 | L160: 154.3157926 | M160: 151.5785966 | P160: ='Main Data Entry'!$G$15 -> 415 | Q160: =IF($C160>(60+'Main Data Entry'!$D$14),(($C160-60-'Main Data Entry'!$D$14)/(60*'Main Data Entry'!$D$13-'Main Data Entry'!$D$14))*(-1)*'Main Data Entry'!$G$15,IF($C160<(60-'Main Data Entry'!$D$14),(($C160-60+'Main Data Entry'!$D$14)/(60*'Main Data Entry'!$D$13-'Main Data Entry'!$D$14))*(-1)*'Main Data Entry'!$G$15,0)) -> 5.982423706 | R160: 6.062399662 | AB160: 42759.16041 | AC160: 59.93999863 | AD160: 157.3434448 | AE160: 59.93999863 | AF160: 157.3434448
A161: T+40s | B161: 42759.16042 | C161: 59.93999863 | D161: 157.3434448 | E161: 59.93942376 | F161: 158.0875577 | I161: 59.93942376 | K161: 158.0875577 | L161: 154.3157926 | M161: 151.5785966 | P161: ='Main Data Entry'!$G$15 -> 415 | Q161: =IF($C161>(60+'Main Data Entry'!$D$14),(($C161-60-'Main Data Entry'!$D$14)/(60*'Main Data Entry'!$D$13-'Main Data Entry'!$D$14))*(-1)*'Main Data Entry'!$G$15,IF($C161<(60-'Main Data Entry'!$D$14),(($C161-60+'Main Data Entry'!$D$14)/(60*'Main Data Entry'!$D$13-'Main Data Entry'!$D$14))*(-1)*'Main Data Entry'!$G$15,0)) -> 5.982423706 | R161: 6.062399662 | AB161: 42759.16042 | AC161: 59.93999863 | AD161: 157.3434448 | AE161: 59.93999863 | AF161: 157.3434448
A162: T+41s | B162: 42759.16043 | C162: 59.93999863 | D162: 157.3654938 | E162: 59.93942376 | F162: 158.0875577 | I162: 59.93942376 | K162: 158.0875577 | L162: 154.3157926 | M162: 151.5785966 | P162: ='Main Data Entry'!$G$15 -> 415 | Q162: =IF($C162>(60+'Main Data Entry'!$D$14),(($C162-60-'Main Data Entry'!$D$14)/(60*'Main Data Entry'!$D$13-'Main Data Entry'!$D$14))*(-1)*'Main Data Entry'!$G$15,IF($C162<(60-'Main Data Entry'!$D$14),(($C162-60+'Main Data Entry'!$D$14)/(60*'Main Data Entry'!$D$13-'Main Data Entry'!$D$14))*(-1)*'Main Data Entry'!$G$15,0)) -> 5.982423706 | R162: 6.062399662 | AB162: 42759.16043 | AC162: 59.93999863 | AD162: 157.3654938 | AE162: 59.93999863 | AF162: 157.3654938
A163: T+42s | B163: 42759.16044 | C163: 59.93999863 | D163: 157.3654938 | E163: 59.93942376 | F163: 158.0875577 | I163: 59.93942376 | K163: 158.0875577 | L163: 154.3157926 | M163: 151.5785966 | P163: ='Main Data Entry'!$G$15 -> 415 | Q163: =IF($C163>(60+'Main Data Entry'!$D$14),(($C163-60-'Main Data Entry'!$D$14)/(60*'Main Data Entry'!$D$13-'Main Data Entry'!$D$14))*(-1)*'Main Data Entry'!$G$15,IF($C163<(60-'Main Data Entry'!$D$14),(($C163-60+'Main Data Entry'!$D$14)/(60*'Main Data Entry'!$D$13-'Main Data Entry'!$D$14))*(-1)*'Main Data Entry'!$G$15,0)) -> 5.982423706 | R163: 6.062399662 | AB163: 42759.16044 | AC163: 59.93999863 | AD163: 157.3654938 | AE163: 59.93999863 | AF163: 157.3654938
A164: T+43s | B164: 42759.16045 | C164: 59.94200134 | D164: 157.1390991 | E164: 59.93942376 | F164: 158.0875577 | I164: 59.93942376 | K164: 158.0875577 | L164: 154.3157926 | M164: 151.5785966 | P164: ='Main Data Entry'!$G$15 -> 415 | Q164: =IF($C164>(60+'Main Data Entry'!$D$14),(($C164-60-'Main Data Entry'!$D$14)/(60*'Main Data Entry'!$D$13-'Main Data Entry'!$D$14))*(-1)*'Main Data Entry'!$G$15,IF($C164<(60-'Main Data Entry'!$D$14),(($C164-60+'Main Data Entry'!$D$14)/(60*'Main Data Entry'!$D$13-'Main Data Entry'!$D$14))*(-1)*'Main Data Entry'!$G$15,0)) -> 5.703802464 | R164: 6.062399662 | AB164: 42759.16045 | AC164: 59.94200134 | AD164: 157.1390991 | AE164: 59.94200134 | AF164: 157.1390991
A165: T+44s | B165: 42759.16046 | C165: 59.94499969 | D165: 157.1390991 | E165: 59.93942376 | F165: 158.0875577 | I165: 59.93942376 | K165: 158.0875577 | L165: 154.3157926 | M165: 151.5785966 | P165: ='Main Data Entry'!$G$15 -> 415 | Q165: =IF($C165>(60+'Main Data Entry'!$D$14),(($C165-60-'Main Data Entry'!$D$14)/(60*'Main Data Entry'!$D$13-'Main Data Entry'!$D$14))*(-1)*'Main Data Entry'!$G$15,IF($C165<(60-'Main Data Entry'!$D$14),(($C165-60+'Main Data Entry'!$D$14)/(60*'Main Data Entry'!$D$13-'Main Data Entry'!$D$14))*(-1)*'Main Data Entry'!$G$15,0)) -> 5.28666666 | R165: 6.062399662 | AB165: 42759.16046 | AC165: 59.94499969 | AD165: 157.1390991 | AE165: 59.94499969 | AF165: 157.1390991
A166: T+45s | B166: 42759.16047 | C166: 59.94400024 | D166: 157.1390991 | E166: 59.93942376 | F166: 158.0875577 | I166: 59.93942376 | K166: 158.0875577 | L166: 154.3157926 | M166: 151.5785966 | P166: ='Main Data Entry'!$G$15 -> 415 | Q166: =IF($C166>(60+'Main Data Entry'!$D$14),(($C166-60-'Main Data Entry'!$D$14)/(60*'Main Data Entry'!$D$13-'Main Data Entry'!$D$14))*(-1)*'Main Data Entry'!$G$15,IF($C166<(60-'Main Data Entry'!$D$14),(($C166-60+'Main Data Entry'!$D$14)/(60*'Main Data Entry'!$D$13-'Main Data Entry'!$D$14))*(-1)*'Main Data Entry'!$G$15,0)) -> 5.425711928 | R166: 6.062399662 | AB166: 42759.16047 | AC166: 59.94400024 | AD166: 157.1390991 | AE166: 59.94400024 | AF166: 157.1390991
A167: T+46s | B167: 42759.16049 | C167: 59.94400024 | D167: 157.1390991 | E167: 59.93942376 | F167: 158.0875577 | I167: 59.93942376 | K167: 158.0875577 | L167: 154.3157926 | M167: 151.5785966 | N167: =P$12+P$26 -> 159.2954559 | O167: =P$12+P$31 -> 150.9419088 | P167: ='Main Data Entry'!$G$15 -> 415 | Q167: =IF($C167>(60+'Main Data Entry'!$D$14),(($C167-60-'Main Data Entry'!$D$14)/(60*'Main Data Entry'!$D$13-'Main Data Entry'!$D$14))*(-1)*'Main Data Entry'!$G$15,IF($C167<(60-'Main Data Entry'!$D$14),(($C167-60+'Main Data Entry'!$D$14)/(60*'Main Data Entry'!$D$13-'Main Data Entry'!$D$14))*(-1)*'Main Data Entry'!$G$15,0)) -> 5.425711928 | R167: 6.062399662 | AB167: 42759.16049 | AC167: 59.94400024 | AD167: 157.1390991 | AE167: 59.94400024 | AF167: 157.1390991
A168: T+47s | B168: 42759.1605 | C168: 59.9469986 | D168: 156.6959991 | E168: 59.93942376 | F168: 158.0875577 | I168: 59.93942376 | K168: 158.0875577 | L168: 154.3157926 | M168: 151.5785966 | N168: =P$12+P$26 -> 159.2954559 | O168: =P$12+P$31 -> 150.9419088 | P168: ='Main Data Entry'!$G$15 -> 415 | Q168: =IF($C168>(60+'Main Data Entry'!$D$14),(($C168-60-'Main Data Entry'!$D$14)/(60*'Main Data Entry'!$D$13-'Main Data Entry'!$D$14))*(-1)*'Main Data Entry'!$G$15,IF($C168<(60-'Main Data Entry'!$D$14),(($C168-60+'Main Data Entry'!$D$14)/(60*'Main Data Entry'!$D$13-'Main Data Entry'!$D$14))*(-1)*'Main Data Entry'!$G$15,0)) -> 5.008576125 | R168: 6.062399662 | AB168: 42759.1605 | AC168: 59.9469986 | AD168: 156.6959991 | AE168: 59.9469986 | AF168: 156.6959991
A169: T+48s | B169: 42759.16051 | C169: 59.9469986 | D169: 156.6959991 | E169: 59.93942376 | F169: 158.0875577 | I169: 59.93942376 | K169: 158.0875577 | L169: 154.3157926 | M169: 151.5785966 | N169: 159.2954559 | O169: 150.9419088 | P169: ='Main Data Entry'!$G$15 -> 415 | Q169: =IF($C169>(60+'Main Data Entry'!$D$14),(($C169-60-'Main Data Entry'!$D$14)/(60*'Main Data Entry'!$D$13-'Main Data Entry'!$D$14))*(-1)*'Main Data Entry'!$G$15,IF($C169<(60-'Main Data Entry'!$D$14),(($C169-60+'Main Data Entry'!$D$14)/(60*'Main Data Entry'!$D$13-'Main Data Entry'!$D$14))*(-1)*'Main Data Entry'!$G$15,0)) -> 5.008576125 | R169: 6.062399662 | AB169: 42759.16051 | AC169: 59.9469986 | AD169: 156.6959991 | AE169: 59.9469986 | AF169: 156.6959991
A170: T+49s | B170: 42759.16052 | C170: 59.9469986 | D170: 156.7126923 | E170: 59.93942376 | F170: 158.0875577 | I170: 59.93942376 | K170: 158.0875577 | L170: 154.3157926 | M170: 151.5785966 | N170: 159.2954559 | O170: 150.9419088 | P170: ='Main Data Entry'!$G$15 -> 415 | Q170: =IF($C170>(60+'Main Data Entry'!$D$14),(($C170-60-'Main Data Entry'!$D$14)/(60*'Main Data Entry'!$D$13-'Main Data Entry'!$D$14))*(-1)*'Main Data Entry'!$G$15,IF($C170<(60-'Main Data Entry'!$D$14),(($C170-60+'Main Data Entry'!$D$14)/(60*'Main Data Entry'!$D$13-'Main Data Entry'!$D$14))*(-1)*'Main Data Entry'!$G$15,0)) -> 5.008576125 | R170: 6.062399662 | AB170: =AB169+TIME(0,0,1) -> 42759.16052 | AC170: 59.9469986 | AD170: 156.7126923 | AE170: 59.9469986 | AF170: 156.7126923
A171: T+50s | B171: 42759.16053 | C171: 59.94499969 | D171: 156.7126923 | E171: 59.93942376 | F171: 158.0875577 | I171: 59.93942376 | K171: 158.0875577 | L171: 154.3157926 | M171: 151.5785966 | N171: 159.2954559 | O171: 150.9419088 | P171: ='Main Data Entry'!$G$15 -> 415 | Q171: =IF($C171>(60+'Main Data Entry'!$D$14),(($C171-60-'Main Data Entry'!$D$14)/(60*'Main Data Entry'!$D$13-'Main Data Entry'!$D$14))*(-1)*'Main Data Entry'!$G$15,IF($C171<(60-'Main Data Entry'!$D$14),(($C171-60+'Main Data Entry'!$D$14)/(60*'Main Data Entry'!$D$13-'Main Data Entry'!$D$14))*(-1)*'Main Data Entry'!$G$15,0)) -> 5.28666666 | R171: 6.062399662 | AB171: 42759.16053 | AC171: 59.94499969 | AD171: 156.7126923 | AE171: 59.94499969 | AF171: 156.7126923
A172: T+51s | B172: 42759.16054 | C172: 59.94499969 | D172: 156.5070038 | E172: 59.93942376 | F172: 158.0875577 | I172: 59.93942376 | K172: 158.0875577 | L172: 154.3157926 | M172: 151.5785966 | N172: 159.2954559 | O172: 150.9419088 | P172: ='Main Data Entry'!$G$15 -> 415 | Q172: =IF($C172>(60+'Main Data Entry'!$D$14),(($C172-60-'Main Data Entry'!$D$14)/(60*'Main Data Entry'!$D$13-'Main Data Entry'!$D$14))*(-1)*'Main Data Entry'!$G$15,IF($C172<(60-'Main Data Entry'!$D$14),(($C172-60+'Main Data Entry'!$D$14)/(60*'Main Data Entry'!$D$13-'Main Data Entry'!$D$14))*(-1)*'Main Data Entry'!$G$15,0)) -> 5.28666666 | R172: 6.062399662 | AB172: 42759.16054 | AC172: 59.94499969 | AD172: 156.5070038 | AE172: 59.94499969 | AF172: 156.5070038
A173: T+52s | B173: 42759.16056 | C173: 59.94599915 | D173: 156.5070038 | E173: 59.93942376 | F173: 158.0875577 | I173: 59.93942376 | K173: 158.0875577 | L173: 154.3157926 | M173: 151.5785966 | N173: 159.2954559 | O173: 150.9419088 | P173: ='Main Data Entry'!$G$15 -> 415 | Q173: =IF($C173>(60+'Main Data Entry'!$D$14),(($C173-60-'Main Data Entry'!$D$14)/(60*'Main Data Entry'!$D$13-'Main Data Entry'!$D$14))*(-1)*'Main Data Entry'!$G$15,IF($C173<(60-'Main Data Entry'!$D$14),(($C173-60+'Main Data Entry'!$D$14)/(60*'Main Data Entry'!$D$13-'Main Data Entry'!$D$14))*(-1)*'Main Data Entry'!$G$15,0)) -> 5.147621393 | R173: 6.062399662 | AB173: 42759.16056 | AC173: 59.94599915 | AD173: 156.5070038 | AE173: 59.94599915 | AF173: 156.5070038
A174: T+53s | B174: 42759.16057 | C174: 59.94599915 | D174: 156.5070038 | N174: 159.2954559 | O174: 150.9419088 | P174: ='Main Data Entry'!$G$15 -> 415 | Q174: =IF($C174>(60+'Main Data Entry'!$D$14),(($C174-60-'Main Data Entry'!$D$14)/(60*'Main Data Entry'!$D$13-'Main Data Entry'!$D$14))*(-1)*'Main Data Entry'!$G$15,IF($C174<(60-'Main Data Entry'!$D$14),(($C174-60+'Main Data Entry'!$D$14)/(60*'Main Data Entry'!$D$13-'Main Data Entry'!$D$14))*(-1)*'Main Data Entry'!$G$15,0)) -> 5.147621393 | AB174: 42759.16057 | AC174: 59.94599915 | AD174: 156.5070038 | AE174: 59.94599915 | AF174: 156.5070038
A175: T+54s | B175: 42759.16058 | C175: 59.94599915 | D175: 156.5070038 | N175: 159.2954559 | O175: 150.9419088 | P175: ='Main Data Entry'!$G$15 -> 415 | Q175: =IF($C175>(60+'Main Data Entry'!$D$14),(($C175-60-'Main Data Entry'!$D$14)/(60*'Main Data Entry'!$D$13-'Main Data Entry'!$D$14))*(-1)*'Main Data Entry'!$G$15,IF($C175<(60-'Main Data Entry'!$D$14),(($C175-60+'Main Data Entry'!$D$14)/(60*'Main Data Entry'!$D$13-'Main Data Entry'!$D$14))*(-1)*'Main Data Entry'!$G$15,0)) -> 5.147621393 | AB175: 42759.16058 | AC175: 59.94599915 | AD175: 156.5070038 | AE175: 59.94599915 | AF175: 156.5070038
A176: T+55s | B176: 42759.16059 | C176: 59.94499969 | D176: 157.8883514 | N176: 159.2954559 | O176: 150.9419088 | P176: ='Main Data Entry'!$G$15 -> 415 | Q176: =IF($C176>(60+'Main Data Entry'!$D$14),(($C176-60-'Main Data Entry'!$D$14)/(60*'Main Data Entry'!$D$13-'Main Data Entry'!$D$14))*(-1)*'Main Data Entry'!$G$15,IF($C176<(60-'Main Data Entry'!$D$14),(($C176-60+'Main Data Entry'!$D$14)/(60*'Main Data Entry'!$D$13-'Main Data Entry'!$D$14))*(-1)*'Main Data Entry'!$G$15,0)) -> 5.28666666 | AB176: 42759.16059 | AC176: 59.94499969 | AD176: 157.8883514 | AE176: 59.94499969 | AF176: 157.8883514
A177: T+56s | B177: 42759.1606 | C177: =OFFSET($AE177,-$B$1,0) -> 59.94499969 | D177: =OFFSET($AF177,-$B$1,0) -> 157.8883514 | N177: 159.2954559 | O177: 150.9419088 | P177: ='Main Data Entry'!$G$15 -> 415 | Q177: =IF($C177>(60+'Main Data Entry'!$D$14),(($C177-60-'Main Data Entry'!$D$14)/(60*'Main Data Entry'!$D$13-'Main Data Entry'!$D$14))*(-1)*'Main Data Entry'!$G$15,IF($C177<(60-'Main Data Entry'!$D$14),(($C177-60+'Main Data Entry'!$D$14)/(60*'Main Data Entry'!$D$13-'Main Data Entry'!$D$14))*(-1)*'Main Data Entry'!$G$15,0)) -> 5.28666666 | AB177: 42759.1606 | AC177: 59.94499969 | AD177: 157.8883514 | AE177: 59.94499969 | AF177: 157.8883514
A178: T+57s | B178: 42759.16061 | C178: 59.94100189 | D178: 157.8375244 | N178: 159.2954559 | O178: 150.9419088 | P178: ='Main Data Entry'!$G$15 -> 415 | Q178: =IF($C178>(60+'Main Data Entry'!$D$14),(($C178-60-'Main Data Entry'!$D$14)/(60*'Main Data Entry'!$D$13-'Main Data Entry'!$D$14))*(-1)*'Main Data Entry'!$G$15,IF($C178<(60-'Main Data Entry'!$D$14),(($C178-60+'Main Data Entry'!$D$14)/(60*'Main Data Entry'!$D$13-'Main Data Entry'!$D$14))*(-1)*'Main Data Entry'!$G$15,0)) -> 5.842847731 | AB178: 42759.16061 | AC178: 59.94100189 | AD178: 157.8375244 | AE178: 59.94100189 | AF178: 157.8375244
A179: T+58s | B179: 42759.16063 | C179: 59.93899918 | D179: 157.8375244 | N179: 159.2954559 | O179: 150.9419088 | P179: ='Main Data Entry'!$G$15 -> 415 | Q179: =IF($C179>(60+'Main Data Entry'!$D$14),(($C179-60-'Main Data Entry'!$D$14)/(60*'Main Data Entry'!$D$13-'Main Data Entry'!$D$14))*(-1)*'Main Data Entry'!$G$15,IF($C179<(60-'Main Data Entry'!$D$14),(($C179-60+'Main Data Entry'!$D$14)/(60*'Main Data Entry'!$D$13-'Main Data Entry'!$D$14))*(-1)*'Main Data Entry'!$G$15,0)) -> 6.121468974 | AB179: 42759.16063 | AC179: 59.93899918 | AD179: 157.8375244 | AE179: 59.93899918 | AF179: 157.8375244
A180: T+59s | B180: 42759.16064 | C180: 59.93700027 | D180: 159.2954559 | N180: 159.2954559 | O180: 150.9419088 | P180: ='Main Data Entry'!$G$15 -> 415 | Q180: =IF($C180>(60+'Main Data Entry'!$D$14),(($C180-60-'Main Data Entry'!$D$14)/(60*'Main Data Entry'!$D$13-'Main Data Entry'!$D$14))*(-1)*'Main Data Entry'!$G$15,IF($C180<(60-'Main Data Entry'!$D$14),(($C180-60+'Main Data Entry'!$D$14)/(60*'Main Data Entry'!$D$13-'Main Data Entry'!$D$14))*(-1)*'Main Data Entry'!$G$15,0)) -> 6.39955951 | AB180: 42759.16064 | AC180: 59.93700027 | AD180: 159.2954559 | AE180: 59.93700027 | AF180: 159.2954559
A181: T+60s | B181: 42759.16065 | C181: 59.93700027 | D181: 159.2954559 | N181: 159.2954559 | O181: 150.9419088 | P181: ='Main Data Entry'!$G$15 -> 415 | Q181: =IF($C181>(60+'Main Data Entry'!$D$14),(($C181-60-'Main Data Entry'!$D$14)/(60*'Main Data Entry'!$D$13-'Main Data Entry'!$D$14))*(-1)*'Main Data Entry'!$G$15,IF($C181<(60-'Main Data Entry'!$D$14),(($C181-60+'Main Data Entry'!$D$14)/(60*'Main Data Entry'!$D$13-'Main Data Entry'!$D$14))*(-1)*'Main Data Entry'!$G$15,0)) -> 6.39955951 | AB181: 42759.16065 | AC181: 59.93700027 | AD181: 159.2954559 | AE181: 59.93700027 | AF181: 159.2954559
A182: T+61s | B182: 42759.16066 | C182: 59.93700027 | D182: 159.2415161 | P182: ='Main Data Entry'!$G$15 -> 415 | Q182: =IF($C182>(60+'Main Data Entry'!$D$14),(($C182-60-'Main Data Entry'!$D$14)/(60*'Main Data Entry'!$D$13-'Main Data Entry'!$D$14))*(-1)*'Main Data Entry'!$G$15,IF($C182<(60-'Main Data Entry'!$D$14),(($C182-60+'Main Data Entry'!$D$14)/(60*'Main Data Entry'!$D$13-'Main Data Entry'!$D$14))*(-1)*'Main Data Entry'!$G$15,0)) -> 6.39955951 | AB182: 42759.16066 | AC182: 59.93700027 | AD182: 159.2415161 | AE182: 59.93700027 | AF182: 159.2415161
A183: T+62s | B183: 42759.16067 | C183: 59.93700027 | D183: 159.2415161 | P183: ='Main Data Entry'!$G$15 -> 415 | Q183: =IF($C183>(60+'Main Data Entry'!$D$14),(($C183-60-'Main Data Entry'!$D$14)/(60*'Main Data Entry'!$D$13-'Main Data Entry'!$D$14))*(-1)*'Main Data Entry'!$G$15,IF($C183<(60-'Main Data Entry'!$D$14),(($C183-60+'Main Data Entry'!$D$14)/(60*'Main Data Entry'!$D$13-'Main Data Entry'!$D$14))*(-1)*'Main Data Entry'!$G$15,0)) -> 6.39955951 | AB183: 42759.16067 | AC183: 59.93700027 | AD183: 159.2415161 | AE183: 59.93700027 | AF183: 159.2415161
A184: T+63s | B184: 42759.16068 | C184: 59.93899918 | D184: 160.3099213 | P184: ='Main Data Entry'!$G$15 -> 415 | Q184: =IF($C184>(60+'Main Data Entry'!$D$14),(($C184-60-'Main Data Entry'!$D$14)/(60*'Main Data Entry'!$D$13-'Main Data Entry'!$D$14))*(-1)*'Main Data Entry'!$G$15,IF($C184<(60-'Main Data Entry'!$D$14),(($C184-60+'Main Data Entry'!$D$14)/(60*'Main Data Entry'!$D$13-'Main Data Entry'!$D$14))*(-1)*'Main Data Entry'!$G$15,0)) -> 6.121468974 | AB184: 42759.16068 | AC184: 59.93899918 | AD184: 160.3099213 | AE184: 59.93899918 | AF184: 160.3099213
A185: T+64s | B185: 42759.16069 | C185: 59.93799973 | D185: 160.3099213 | P185: ='Main Data Entry'!$G$15 -> 415 | Q185: =IF($C185>(60+'Main Data Entry'!$D$14),(($C185-60-'Main Data Entry'!$D$14)/(60*'Main Data Entry'!$D$13-'Main Data Entry'!$D$14))*(-1)*'Main Data Entry'!$G$15,IF($C185<(60-'Main Data Entry'!$D$14),(($C185-60+'Main Data Entry'!$D$14)/(60*'Main Data Entry'!$D$13-'Main Data Entry'!$D$14))*(-1)*'Main Data Entry'!$G$15,0)) -> 6.260514242 | AB185: 42759.16069 | AC185: 59.93799973 | AD185: 160.3099213 | AE185: 59.93799973 | AF185: 160.3099213
A186: T+65s | B186: 42759.16071 | C186: 59.93799973 | D186: 160.2703857 | P186: ='Main Data Entry'!$G$15 -> 415 | Q186: =IF($C186>(60+'Main Data Entry'!$D$14),(($C186-60-'Main Data Entry'!$D$14)/(60*'Main Data Entry'!$D$13-'Main Data Entry'!$D$14))*(-1)*'Main Data Entry'!$G$15,IF($C186<(60-'Main Data Entry'!$D$14),(($C186-60+'Main Data Entry'!$D$14)/(60*'Main Data Entry'!$D$13-'Main Data Entry'!$D$14))*(-1)*'Main Data Entry'!$G$15,0)) -> 6.260514242 | AB186: =AB185+TIME(0,0,1) -> 42759.16071 | AC186: 59.93799973 | AD186: 160.2703857 | AE186: 59.93799973 | AF186: 160.2703857
A187: T+66s | B187: =B186+TIME(0,0,1) -> 42759.16072 | C187: 59.93799973 | D187: 160.2703857 | P187: ='Main Data Entry'!$G$15 -> 415 | Q187: =IF($C187>(60+'Main Data Entry'!$D$14),(($C187-60-'Main Data Entry'!$D$14)/(60*'Main Data Entry'!$D$13-'Main Data Entry'!$D$14))*(-1)*'Main Data Entry'!$G$15,IF($C187<(60-'Main Data Entry'!$D$14),(($C187-60+'Main Data Entry'!$D$14)/(60*'Main Data Entry'!$D$13-'Main Data Entry'!$D$14))*(-1)*'Main Data Entry'!$G$15,0)) -> 6.260514242 | AB187: 42759.16072 | AC187: 59.93799973 | AD187: 160.2703857 | AE187: 59.93799973 | AF187: 160.2703857
A188: T+67s | B188: 42759.16073 | C188: 59.94100189 | D188: 160.4154053 | P188: ='Main Data Entry'!$G$15 -> 415 | Q188: =IF($C188>(60+'Main Data Entry'!$D$14),(($C188-60-'Main Data Entry'!$D$14)/(60*'Main Data Entry'!$D$13-'Main Data Entry'!$D$14))*(-1)*'Main Data Entry'!$G$15,IF($C188<(60-'Main Data Entry'!$D$14),(($C188-60+'Main Data Entry'!$D$14)/(60*'Main Data Entry'!$D$13-'Main Data Entry'!$D$14))*(-1)*'Main Data Entry'!$G$15,0)) -> 5.842847731 | AB188: 42759.16073 | AC188: 59.94100189 | AD188: 160.4154053 | AE188: 59.94100189 | AF188: 160.4154053
A189: T+68s | B189: 42759.16074 | C189: 59.94100189 | D189: 160.4154053 | P189: ='Main Data Entry'!$G$15 -> 415 | Q189: =IF($C189>(60+'Main Data Entry'!$D$14),(($C189-60-'Main Data Entry'!$D$14)/(60*'Main Data Entry'!$D$13-'Main Data Entry'!$D$14))*(-1)*'Main Data Entry'!$G$15,IF($C189<(60-'Main Data Entry'!$D$14),(($C189-60+'Main Data Entry'!$D$14)/(60*'Main Data Entry'!$D$13-'Main Data Entry'!$D$14))*(-1)*'Main Data Entry'!$G$15,0)) -> 5.842847731 | AB189: 42759.16074 | AC189: 59.94100189 | AD189: 160.4154053 | AE189: 59.94100189 | AF189: 160.4154053
A190: T+69s | B190: 42759.16075 | C190: 59.94400024 | D190: 160.4154053 | P190: ='Main Data Entry'!$G$15 -> 415 | Q190: =IF($C190>(60+'Main Data Entry'!$D$14),(($C190-60-'Main Data Entry'!$D$14)/(60*'Main Data Entry'!$D$13-'Main Data Entry'!$D$14))*(-1)*'Main Data Entry'!$G$15,IF($C190<(60-'Main Data Entry'!$D$14),(($C190-60+'Main Data Entry'!$D$14)/(60*'Main Data Entry'!$D$13-'Main Data Entry'!$D$14))*(-1)*'Main Data Entry'!$G$15,0)) -> 5.425711928 | AB190: 42759.16075 | AC190: 59.94400024 | AD190: 160.4154053 | AE190: 59.94400024 | AF190: 160.4154053
A191: T+70s | B191: 42759.16076 | C191: 59.9469986 | D191: 160.4154053 | P191: ='Main Data Entry'!$G$15 -> 415 | Q191: =IF($C191>(60+'Main Data Entry'!$D$14),(($C191-60-'Main Data Entry'!$D$14)/(60*'Main Data Entry'!$D$13-'Main Data Entry'!$D$14))*(-1)*'Main Data Entry'!$G$15,IF($C191<(60-'Main Data Entry'!$D$14),(($C191-60+'Main Data Entry'!$D$14)/(60*'Main Data Entry'!$D$13-'Main Data Entry'!$D$14))*(-1)*'Main Data Entry'!$G$15,0)) -> 5.008576125 | AB191: 42759.16076 | AC191: 59.9469986 | AD191: 160.4154053 | AE191: 59.9469986 | AF191: 160.4154053
A192: T+71s | B192: 42759.16078 | C192: 59.9469986 | D192: 160.3692169 | P192: ='Main Data Entry'!$G$15 -> 415 | Q192: =IF($C192>(60+'Main Data Entry'!$D$14),(($C192-60-'Main Data Entry'!$D$14)/(60*'Main Data Entry'!$D$13-'Main Data Entry'!$D$14))*(-1)*'Main Data Entry'!$G$15,IF($C192<(60-'Main Data Entry'!$D$14),(($C192-60+'Main Data Entry'!$D$14)/(60*'Main Data Entry'!$D$13-'Main Data Entry'!$D$14))*(-1)*'Main Data Entry'!$G$15,0)) -> 5.008576125 | AB192: 42759.16078 | AC192: 59.9469986 | AD192: 160.3692169 | AE192: 59.9469986 | AF192: 160.3692169
A193: T+72s | B193: 42759.16079 | C193: 59.94900131 | D193: 160.3692169 | P193: ='Main Data Entry'!$G$15 -> 415 | Q193: =IF($C193>(60+'Main Data Entry'!$D$14),(($C193-60-'Main Data Entry'!$D$14)/(60*'Main Data Entry'!$D$13-'Main Data Entry'!$D$14))*(-1)*'Main Data Entry'!$G$15,IF($C193<(60-'Main Data Entry'!$D$14),(($C193-60+'Main Data Entry'!$D$14)/(60*'Main Data Entry'!$D$13-'Main Data Entry'!$D$14))*(-1)*'Main Data Entry'!$G$15,0)) -> 4.729954882 | AB193: 42759.16079 | AC193: 59.94900131 | AD193: 160.3692169 | AE193: 59.94900131 | AF193: 160.3692169
A194: T+73s | B194: 42759.1608 | C194: 59.94800186 | D194: 160.3692169 | P194: ='Main Data Entry'!$G$15 -> 415 | Q194: =IF($C194>(60+'Main Data Entry'!$D$14),(($C194-60-'Main Data Entry'!$D$14)/(60*'Main Data Entry'!$D$13-'Main Data Entry'!$D$14))*(-1)*'Main Data Entry'!$G$15,IF($C194<(60-'Main Data Entry'!$D$14),(($C194-60+'Main Data Entry'!$D$14)/(60*'Main Data Entry'!$D$13-'Main Data Entry'!$D$14))*(-1)*'Main Data Entry'!$G$15,0)) -> 4.86900015 | AB194: 42759.1608 | AC194: 59.94800186 | AD194: 160.3692169 | AE194: 59.94800186 | AF194: 160.3692169
A195: T+74s | B195: 42759.16081 | C195: 59.94800186 | D195: 160.3692169 | P195: ='Main Data Entry'!$G$15 -> 415 | Q195: =IF($C195>(60+'Main Data Entry'!$D$14),(($C195-60-'Main Data Entry'!$D$14)/(60*'Main Data Entry'!$D$13-'Main Data Entry'!$D$14))*(-1)*'Main Data Entry'!$G$15,IF($C195<(60-'Main Data Entry'!$D$14),(($C195-60+'Main Data Entry'!$D$14)/(60*'Main Data Entry'!$D$13-'Main Data Entry'!$D$14))*(-1)*'Main Data Entry'!$G$15,0)) -> 4.86900015 | AB195: 42759.16081 | AC195: 59.94800186 | AD195: 160.3692169 | AE195: 59.94800186 | AF195: 160.3692169
A196: T+75s | B196: 42759.16082 | C196: 59.94599915 | D196: 160.2681427 | P196: ='Main Data Entry'!$G$15 -> 415 | Q196: =IF($C196>(60+'Main Data Entry'!$D$14),(($C196-60-'Main Data Entry'!$D$14)/(60*'Main Data Entry'!$D$13-'Main Data Entry'!$D$14))*(-1)*'Main Data Entry'!$G$15,IF($C196<(60-'Main Data Entry'!$D$14),(($C196-60+'Main Data Entry'!$D$14)/(60*'Main Data Entry'!$D$13-'Main Data Entry'!$D$14))*(-1)*'Main Data Entry'!$G$15,0)) -> 5.147621393 | AB196: 42759.16082 | AC196: 59.94599915 | AD196: 160.2681427 | AE196: 59.94599915 | AF196: 160.2681427
A197: T+76s | B197: 42759.16083 | C197: 59.94599915 | D197: 160.2681427 | P197: ='Main Data Entry'!$G$15 -> 415 | Q197: =IF($C197>(60+'Main Data Entry'!$D$14),(($C197-60-'Main Data Entry'!$D$14)/(60*'Main Data Entry'!$D$13-'Main Data Entry'!$D$14))*(-1)*'Main Data Entry'!$G$15,IF($C197<(60-'Main Data Entry'!$D$14),(($C197-60+'Main Data Entry'!$D$14)/(60*'Main Data Entry'!$D$13-'Main Data Entry'!$D$14))*(-1)*'Main Data Entry'!$G$15,0)) -> 5.147621393 | AB197: 42759.16083 | AC197: 59.94599915 | AD197: 160.2681427 | AE197: 59.94599915 | AF197: 160.2681427
A198: T+77s | B198: 42759.16084 | C198: 59.94400024 | D198: 160.2681427 | P198: ='Main Data Entry'!$G$15 -> 415 | Q198: =IF($C198>(60+'Main Data Entry'!$D$14),(($C198-60-'Main Data Entry'!$D$14)/(60*'Main Data Entry'!$D$13-'Main Data Entry'!$D$14))*(-1)*'Main Data Entry'!$G$15,IF($C198<(60-'Main Data Entry'!$D$14),(($C198-60+'Main Data Entry'!$D$14)/(60*'Main Data Entry'!$D$13-'Main Data Entry'!$D$14))*(-1)*'Main Data Entry'!$G$15,0)) -> 5.425711928 | AB198: 42759.16084 | AC198: 59.94400024 | AD198: 160.2681427 | AE198: 59.94400024 | AF198: 160.2681427
A199: T+78s | B199: 42759.16086 | C199: 59.93999863 | D199: 160.2681427 | P199: ='Main Data Entry'!$G$15 -> 415 | Q199: =IF($C199>(60+'Main Data Entry'!$D$14),(($C199-60-'Main Data Entry'!$D$14)/(60*'Main Data Entry'!$D$13-'Main Data Entry'!$D$14))*(-1)*'Main Data Entry'!$G$15,IF($C199<(60-'Main Data Entry'!$D$14),(($C199-60+'Main Data Entry'!$D$14)/(60*'Main Data Entry'!$D$13-'Main Data Entry'!$D$14))*(-1)*'Main Data Entry'!$G$15,0)) -> 5.982423706 | AB199: 42759.16086 | AC199: 59.93999863 | AD199: 160.2681427 | AE199: 59.93999863 | AF199: 160.2681427
A200: T+79s | B200: 42759.16087 | C200: 59.94100189 | D200: 159.4924927 | P200: ='Main Data Entry'!$G$15 -> 415 | Q200: =IF($C200>(60+'Main Data Entry'!$D$14),(($C200-60-'Main Data Entry'!$D$14)/(60*'Main Data Entry'!$D$13-'Main Data Entry'!$D$14))*(-1)*'Main Data Entry'!$G$15,IF($C200<(60-'Main Data Entry'!$D$14),(($C200-60+'Main Data Entry'!$D$14)/(60*'Main Data Entry'!$D$13-'Main Data Entry'!$D$14))*(-1)*'Main Data Entry'!$G$15,0)) -> 5.842847731 | AB200: 42759.16087 | AC200: 59.94100189 | AD200: 159.4924927 | AE200: 59.94100189 | AF200: 159.4924927
... 79 more rows

Sheet Chart
A1: Alignment Chart for Historian Data
A2: -Users may use this chart to align their frequency and MW data to the t(0) of the event provided by NERC staff.
A3: -Chart will not be available for manually entered data.
F34: OFFSET (s): | H34: 0
